Workbook

Sheet Indice
B1: Sociedad: | C1: INVESTA CAPITAL S.A.EC.A.
S2: 1 | T2: Enero
S3: 2 | T3: Febrero
S4: 3 | T4: Marzo
S5: 4 | T5: Abril
A6: Fecha Presentación: | B6: 2023-03-31 | C6: <-- Completar Fecha en formato (DD/MM/AAA) | S6: 5 | T6: Mayo
S7: 6 | T7: Junio
S8: 7 | T8: Julio
C9: INDICE | D9: REF. | S9: 8 | T9: Agosto
B10: Informacion General | S10: 9 | T10: Septiembre
C11: Descripción de la naturaleza y del negocio de la Sociedad | D11: Nota 1 | S11: 10 | T11: Octubre
C12: Resumen de las principales políticas contables | D12: Nota 2 | S12: 11 | T12: Noviembre
B13: Balance General | D13: BG | S13: 12 | T13: Diciembre
C14: Efectivo y equivalente de efectivo | D14: Nota 3
C15: Inversiones temporales | D15: Nota 4
C16: Cuentas por cobrar comerciales | D16: Nota 5
C17: Otros créditos | D17: Nota 6
C18: Cuentas por cobrar comerciales | D18: Nota 5
C19: Inventarios | D19: Nota 7
C20: Inversión en asociadas | D20: Nota 8
C21: Propiedades, planta y equipo | D21: Nota 9
C22: Activos disponibles para la venta | D22: Nota 10
C23: Activos intangibles | D23: Nota 11
C24: Goodwill | D24: Nota 12
C25: Cuentas por pagar comerciales | D25: Nota 13
C26: Préstamos a corto plazo | D26: Nota 14
C27: Porción corriente de la deuda a largo plazo | D27: Nota 15
C28: Remuneraciones y cargas sociales a pagar | D28: Nota 16
C29: Impuestos a pagar | D29: Nota 17
C30: Provisiones | D30: Nota 18
C31: Otros pasivos corrientes | D31: Nota 19
C32: Prestamos a largo plazo | D32: Nota 14
C33: Otros pasivos no corrientes | D33: Nota 19
C34: Capital integrado | D34: Nota 20
C35: Reserva de revalúo | D35: Nota 21
C36: Reserva legal | D36: Nota 21
C37: Reservas estatutarias | D37: Nota 21
C38: Reservas facultativas | D38: Nota 21
C39: Diferencia transitoria por conversión | D39: Nota 22
C40: Resultados acumulados | D40: Nota 23
C41: Interés minoritario | D41: Nota 24
B42: Estado de Resultados | D42: ER
C43: Ventas | D43: Nota 25
C44: Costo de ventas | D44: Nota 26
C45: Gastos de ventas | D45: Nota 27
C46: Gastos administrativos | D46: Nota 27
C47: Otros ingresos y gastos operativos | D47: Nota 28
C48: Ingresos financieros - neto | D48: Nota 29
C49: Gastos financieros - neto | D49: Nota 29
C50: Resultado de inversiones en asociadas | D50: Nota 30
C51: Resultado participación minoritaria | D51: Nota 31
C52: Impuesto a la renta | D52: Nota 32
C53: Resultado extraordinario neto de impuesto a la renta | D53: Nota 33
C54: Resultado sobre actividades discontinuadas neto de impuesto a la renta | D54: Nota 34
C55: Utilidad/(Pérdida) neta del año | D55: Nota 35
C56: Utilidad neta por acción ordinaria | D56: Nota 35
B57: Estado de Evolución del Patrimonio Neto | D57: EVPN
B58: Estado de Flujos de Efectivo | D58: EFE
B59: Otras Notas de los Estados Financieros
C60: Activos gravados | D60: Nota 36
C61: Contingencias y compromisos | D61: Nota 37
C62: Impuesto diferido | D62: Nota 38
C63: Hechos posteriores | D63: Nota 39
C64: Saldos y transacciones con partes relacionadas | D64: Nota 40

Sheet BG
G1: Indice
A3: BALANCE GENERAL
A4: =IFERROR(IF(Indice!B6="","Al dia... de mes… de año 2XX2…","Al "&DAY(Indice!B6)&" de "&VLOOKUP(MONTH(Indice!B6),Indice!S:T,2,0)&" de "&YEAR(Indice!B6)),"Al dia... de mes… de año 2XX2…") -> Al 31 de Marzo de 2023
E7: Nota | F7: =IFERROR(IF(Indice!B6="","2XX2",YEAR(Indice!B6)),"2XX2") -> 2023 | G7: =IFERROR(YEAR(Indice!B6-365),"2XX1") -> 2022
B8: ACTIVOS
B9: Activos Corrientes
C10: Efectivo y equivalente de efectivo | E10: 3 | F10: ='Nota 3'!C19 -> 558497936 | G10: ='Nota 3'!D19 -> 1657919204
C11: Inversiones Financieras | E11: 4 | F11: ='Nota 4'!B23 -> 341691044 | G11: ='Nota 4'!C23 -> 229488794
C12: Cuentas por cobrar comerciales | E12: 5 | F12: ='Nota 5'!C27 -> 159178459 | G12: ='Nota 5'!D27 -> 285124269
C13: Otros créditos | E13: 6 | F13: ='Nota 6'!B24 -> 2907180650 | G13: ='Nota 6'!C24 -> 21629420542
C14: Inventarios | E14: 7 | F14: ='Nota 7'!B15 -> 2293214523 | G14: ='Nota 7'!C15 -> 1189305808
C15: Total activos corrientes | F15: =SUM(F10:F14) -> 6259762612 | G15: =SUM(G10:G14) -> 24991258617
B16: Activos no Corrientes | F16: 6266310814
C17: Otros créditos | E17: 6 | F17: =+'Nota 6'!F15 -> 0 | G17: =+'Nota 6'!G15 -> 0
C18: Cuentas por cobrar comerciales | E18: 5 | F18: =+'Nota 5'!C54 -> 0 | G18: =+'Nota 5'!D54 -> 0
C19: Inversión en asociadas | E19: 8 | F19: ='Nota 8'!B8 -> 2962015131 | G19: ='Nota 8'!C8 -> 6389530722
C20: Propiedades, planta y equipo/Bienes de uso, neto | E20: 9 | F20: ='Nota 9'!L24 -> 295168615 | G20: ='Nota 9'!M24 -> 294243055
C21: Activos disponibles para la venta | E21: 10 | F21: ='Nota 10'!B19 -> 0 | G21: ='Nota 10'!C19 -> 0
C22: Activos intangibles | E22: 11 | F22: ='Nota 11'!B11 -> 29964905.4 | G22: ='Nota 11'!C11 -> 27387114.4
C23: Cargos Diferidos | E23: 12 | F23: ='Nota 12'!B11 -> 242947866.4 | G23: =+'Nota 12'!C11 -> 242947866.4
C24: Inversiones Financieras | E24: 4 | F24: =+'Nota 4'!F14 -> 2773133693 | G24: =+'Nota 4'!G14 -> 2408044990
C25: Inversiones Inmobiliarias | E25: 41 | F25: =+'Nota 41'!B14 -> 31194023597 | G25: =+'Nota 41'!C14 -> 3498603950
C26: Total activos no corrientes | F26: =SUM(F17:F25) -> 3.749725381e+10 | G26: =SUM(G17:G25) -> 1.28607577e+10
B27: Total Activos | F27: =+F15+F26 -> 4.375701642e+10 | G27: =+G15+G26 -> 3.785201631e+10
B28: PASIVOS Y PATRIMONIO NETO
B29: Pasivos corrientes
C30: Cuentas por pagar comerciales | E30: 13 | F30: ='Nota 13'!D12 -> 6366923 | G30: ='Nota 13'!E12 -> 2144257
C31: Préstamos a corto plazo | E31: 14 | F31: ='Nota 14'!E29 -> 0 | G31: ='Nota 14'!K29 -> 0
C32: Porción corriente de la deuda a largo plazo | E32: 15 | F32: ='Nota 15'!B15 -> 0 | G32: ='Nota 15'!C15 -> 0
C33: Remuneraciones y cargas sociales a pagar | E33: 16 | F33: ='Nota 16'!B12 -> 3519000 | G33: ='Nota 16'!C12 -> 3817828
C34: Impuestos a pagar | E34: 17 | F34: ='Nota 17'!B12 -> 145599299 | G34: ='Nota 17'!C12 -> 145599299
C35: Provisiones | E35: 18 | F35: ='Nota 18'!B15 -> 90855496 | G35: ='Nota 18'!C15 -> 41075604
C36: Otros pasivos corrientes | E36: 19 | F36: ='Nota 19'!B17 -> 1423849021 | G36: ='Nota 19'!C17 -> 12394221
C37: Total Pasivos Corrientes | F37: =SUM(F30:F36) -> 1670189739 | G37: =SUM(G30:G36) -> 205031209
B38: Pasivos no corrientes
C39: Préstamos a largo plazo | E39: 14 | F39: ='Nota 14'!E52 -> 0 | G39: ='Nota 14'!K52 -> 0
C40: Otros pasivos no corrientes | E40: 19 | F40: ='Nota 19'!F17 -> 3704270231 | G40: ='Nota 19'!G17 -> 2508270231
C41: Total pasivos no corrientes | F41: =SUM(F39:F40) -> 3704270231 | G41: =SUM(G39:G40) -> 2508270231
B43: Total Pasivos | F43: =+F37+F41 -> 5374459970 | G43: =+G37+G41 -> 2713301440
B44: Patrimonio Neto
C45: Capital integrado | E45: 20 | F45: ='Nota 20'!B12 -> 38367620437 | G45: ='Nota 20'!C12 -> 34475018752
C46: Reserva de revalúo | E46: 21 | F46: =' Nota 21'!B8 -> 0 | G46: =' Nota 21'!C8 -> 0
C47: Reserva legal | E47: 21 | F47: =' Nota 21'!B12 -> 0 | G47: =' Nota 21'!C12 -> 0
C48: Reservas estatutarias | E48: 21 | F48: =' Nota 21'!B16 -> 0 | G48: =' Nota 21'!C16 -> 0
C49: Reservas facultatitvas | E49: 21 | F49: =' Nota 21'!B20 -> 0 | G49: =' Nota 21'!C20 -> 0
C50: Diferencia transitoria por conversión | E50: 22 | F50: ='Nota 22'!B8 -> 0 | G50: ='Nota 22'!C8 -> 0
C51: Resultados acumulados | E51: 23 | F51: ='Nota 23'!B10 -> 14936013 | G51: ='Nota 23'!C10 -> 663696123
C52: Subtotal | F52: =SUM(F45:F51) -> 38382556450 | G52: =SUM(G45:G51) -> 35138714875
C53: Interés minoritario | E53: 24 | F53: ='Nota 24'!B8 -> 0 | G53: ='Nota 24'!C8 -> 0
B54: Total Patrimonio Neto | F54: =F52 -> 38382556450 | G54: =G52 -> 35138714875
B55: Total Pasivos y Patrimonio Neto | F55: =+F43+F54 -> 43757016420 | G55: =+G43+G54 -> 37852016315
B57: Las notas que se acompañan forman parte integrante de estos estados.

Sheet ER
B1: Indice | D1: =ER!A4 -> 
A7: ESTADO DE RESULTADOS
A8: =IFERROR(IF(Indice!B6="","Al dia... de mes… de año 2XX2…","Al "&DAY(Indice!B6)&" de "&VLOOKUP(MONTH(Indice!B6),Indice!S:T,2,0)&" de "&YEAR(Indice!B6)),"Al dia... de mes… de año 2XX2…") -> Al 31 de Marzo de 2023
A9: Comparativo con igual período del año anterior
A10: (En miles de guaraníes)
B12: Nota | C12: =IFERROR(IF(Indice!B6="","2XX2",YEAR(Indice!B6)),"2XX2") -> 2023 | D12: =+IFERROR(IF(Indice!B6="","2XX2",YEAR(Indice!B6-365)),"2XX2") -> 2022
A13: Ventas | B13: 25 | C13: ='Nota 25'!B37 -> 13868719 | D13: ='Nota 25'!C37 -> 19801551978
A14: Otros ingresos operativos | B14: 28 | C14: =+'Nota 28'!B17 -> 61748104 | D14: =+'Nota 28'!C17 -> 424808757
A15: Costo de ventas | B15: 26 | C15: ='Nota 26'!B13 -> 0 | D15: ='Nota 26'!C13 -> 15886158009
A16: Utilidad bruta | C16: =+C13+C14-C15 -> 75616823 | D16: =+D13+D14-D15 -> 4340202726
A17: Gastos de ventas | B17: 27 | C17: ='Nota 27'!B81 -> 111943757 | D17: ='Nota 27'!E81 -> 128083182
A18: Gastos administrativos | B18: 27 | C18: =+'Nota 27'!C81 -> 612433176 | D18: ='Nota 27'!F81 -> 3067614599
A19: Otros gastos operativos | B19: 28 | C19: =+'Nota 28'!F17 -> 0 | D19: ='Nota 28'!G17 -> 0
A20: Resultado operativo | C20: =+C16-SUM(C17:C19) -> -648760110 | D20: =+D16-SUM(D17:D19) -> 1144504945
A21: Ingresos financieros - neto | B21: 29 | C21: ='Nota 29'!B14 -> 0 | D21: ='Nota 29'!C14 -> 0
A22: Gastos financieros - neto | B22: 29 | C22: ='Nota 29'!F14 -> 0 | D22: ='Nota 29'!G14 -> 0
A23: Subtotal | C23: =SUM(C20:C22) -> -648760110 | D23: =SUM(D20:D22) -> 1144504945
A24: Resultado de inversiones en asociadas | B24: 30 | C24: ='Nota 30'!B16 -> 0 | D24: ='Nota 30'!C16 -> 0
A25: Resultados ordinarios antes de impuesto a la renta y participación minoritaria | C25: =C23+C24 -> -648760110 | D25: =D23+D24 -> 1144504945
A26: Resultado participación minoritaria | B26: 31 | C26: ='Nota 31'!B9 -> 0 | D26: ='Nota 31'!C9 -> 0
A27: Resultado ordinario antes del impuesto a la renta | C27: =+C25+C26 -> -648760110 | D27: =+D25+D26 -> 1144504945
A28: Impuesto a la renta | B28: 32 | C28: ='Nota 32'!B10 -> 0 | D28: ='Nota 32'!C10 -> 145599299
A29: Resultado neto de actividades ordinarias | C29: =C27-C28 -> -648760110 | D29: =D27-D28 -> 998905646
A30: Resultado extraordinario neto de impuesto a la renta | B30: 33 | C30: =+'Nota 33'!B10 -> 0 | D30: =+'Nota 33'!C10 -> 0
A31: Resultado sobre actividades discontinuadas neto de impuesto a la renta | B31: 34 | C31: ='Nota 34'!B12 -> 0 | D31: ='Nota 34'!C12 -> 0
A32: Utilidad/(Pérdida) neta del año | C32: =C29+C30+C31 -> -648760110 | D32: =D29+D30+D31 -> 998905646
A33: Utilidad neta por acción ordinaria | B33: 35 | C33: ='Nota 35'!B10 -> 0 | D33: ='[1]Nota 35'!C10 -> 0
A36: Las notas que se acompañan forman parte integrante de estos estados.

Sheet EVPN
H1: Indice
F4: ESTADO DE EVOLUCIÓN DEL PATRIMONIO NETO
H5: =IFERROR(IF(Indice!B6="","Al dia... de mes… de año 2XX2…","Al "&DAY(Indice!B6)&" de "&VLOOKUP(MONTH(Indice!B6),Indice!S:T,2,0)&" de "&YEAR(Indice!B6)),"Al dia... de mes… de año 2XX2…") -> Al 31 de Marzo de 2023
A6: Comparativo con igual periodo del año anterior
A7: (En miles de guaraníes)
C10: Aporte de los propietarios | L10: Ganancias reservadas
C11: Capital suscripto e integrado | D11: Aporte para | F11: Primas de emisión | H11: Reserva de revalúo | J11: Reserva de revalúo técnico | L11: Reserva legal | N11: Reserva facultativa | P11: Resultados acumulados | R11: Resultados del ejercicio | T11: Interes Minoritario | V11: Total
D12: aumento de capital | P12: Total | R12: Total
A14: Saldo al 31 de Diciembre de 2021 | C14: 34000000000 | D14: 0 | F14: 0 | G14: 0 | H14: 0 | J14: 0 | L14: 0 | N14: 0 | P14: 0 | R14: -335209523 | T14: 0 | V14: 33664790477
A15: Cambio en política contable (Nota….) | C15: 0 | F15: 0 | H15: 0 | J15: 0 | L15: 0 | N15: 0 | P15: 0 | R15: 0 | T15: 0 | V15: =+SUM(C15:U15) -> 0
A16: Saldo reestructurado | C16: 0 | F16: 0 | H16: 0 | J16: 0 | L16: 0 | N16: 0 | P16: 0 | R16: 0 | T16: 0 | V16: =+SUM(C16:U16) -> 0
A17: Distribución de dividendos s/Acta de Asamblea Ordinaria N°… de fecha……… | C17: 0 | F17: 0 | H17: 0 | J17: 0 | L17: 0 | N17: 0 | P17: 0 | R17: 0 | T17: 0 | V17: 0
A18: Integración del capital social | C18: 427000000 | F18: 0 | H18: 0 | J18: 0 | L18: 0 | N18: 0 | P18: 0 | R18: 0 | T18: 0 | V18: 427000000
A19: Aportes No capitalizados | C19: 48018752 | F19: 0 | H19: 0 | J19: 0 | L19: 0 | N19: 0 | P19: 0 | R19: 0 | T19: 0 | V19: 48018752
A20: Pago de acciones preferentes | C20: 0 | F20: 0 | H20: 0 | J20: 0 | L20: 0 | N20: 0 | P20: 0 | R20: 0 | T20: 0 | V20: 0
A21: Utilidades a distribuir | C21: 0 | F21: 0 | H21: 0 | J21: 0 | L21: 0 | N21: 0 | P21: 0 | R21: 0 | T21: 0 | V21: 0
A22: Distribución de utilidades | C22: 0 | F22: 0 | H22: 0 | J22: 0 | L22: 0 | N22: 0 | P22: 0 | R22: 0 | T22: 0 | V22: 0
A23: Reserva Legal | C23: 0 | F23: 0 | H23: 0 | J23: 0 | L23: 0 | N23: 0 | P23: 0 | R23: 0 | T23: 0 | V23: 0
A24: Reserva Facultativa | C24: 0 | F24: 0 | H24: 0 | J24: 0 | L24: 0 | N24: 0 | P24: 0 | R24: 0 | T24: 0 | V24: 0
A25: Revalúo de activos fijos | C25: 0 | F25: 0 | H25: 0 | J25: 0 | L25: 0 | N25: 0 | P25: 0 | R25: 0 | T25: 0 | V25: 0
A26: Desafectación de reservas | C26: 0 | F26: 0 | H26: 0 | J26: 0 | L26: 0 | N26: 0 | P26: 0 | R26: 0 | T26: 0 | V26: 0
A27: Resultados Acumulados | C27: 0 | F27: 0 | H27: 0 | J27: 0 | L27: 0 | N27: 0 | P27: -335209523 | R27: 335209523 | T27: 0 | V27: 0
A28: Resultado del ejercicio | C28: 0 | F28: 0 | H28: 0 | J28: 0 | L28: 0 | N28: 0 | P28: 0 | R28: 998905646 | T28: 0 | V28: 998905646
A30: Saldo al 31 de Diciembre de 2022 | C30: =+SUM(C14:C28) -> 34475018752 | D30: =SUM(D14:D29) -> 0 | F30: =+SUM(F14:F28) -> 0 | G30: =SUM(G14:G29) -> 0 | H30: =+SUM(H14:H28) -> 0 | J30: =+SUM(J14:J28) -> 0 | L30: =+SUM(L14:L28) -> 0 | N30: =+SUM(N14:N28) -> 0 | P30: =+SUM(P14:P28) -> -335209523 | R30: =+SUM(R14:R28) -> 998905646 | T30: =+SUM(T14:T28) -> 0 | V30: =+SUM(V14:V28) -> 35138714875
A32: Integración de Capital | C32: 65981248 | F32: 0 | H32: 0 | J32: 0 | L32: 0 | N32: 0 | P32: 0 | R32: 0 | T32: 0 | V32: =+SUM(C32:U32) -> 65981248
A33: Aumento de Capital | C33: 0 | V33: =+SUM(C33:U33) -> 0
A34: Aportes No capitalizados | C34: =+'Nota 20'!B9 -> 3826620437 | F34: 0 | H34: 0 | J34: 0 | L34: 0 | N34: 0 | P34: 0 | R34: 0 | T34: 0 | V34: =+SUM(C34:U34) -> 3826620437
A35: Pago de acciones preferentes | C35: 0 | F35: 0 | H35: 0 | J35: 0 | L35: 0 | N35: 0 | P35: 0 | R35: 0 | T35: 0 | V35: 0
A36: Utilidades a distribuir | C36: 0 | F36: 0 | H36: 0 | J36: 0 | L36: 0 | N36: 0 | P36: 0 | R36: 0 | T36: 0 | V36: 0
A37: Distribución de dividendos s/Acta de Asamblea General Ordinaria N°… de fecha……… | C37: 0 | F37: 0 | H37: 0 | J37: 0 | L37: 0 | N37: 0 | P37: 0 | R37: 0 | T37: 0 | V37: 0
A38: Reserva Legal | C38: 0 | F38: 0 | H38: 0 | J38: 0 | L38: 0 | N38: 0 | P38: 0 | R38: 0 | T38: 0 | V38: 0
A39: Revalúo de activos fijos | C39: 0 | F39: 0 | H39: 0 | J39: 0 | L39: 0 | N39: 0 | P39: 0 | R39: 0 | T39: 0 | V39: 0
A40: Desafectación de reservas | C40: 0 | F40: 0 | H40: 0 | J40: 0 | L40: 0 | N40: 0 | P40: 0 | R40: 0 | T40: 0 | V40: 0
A41: Resultados Acumulados | C41: 0 | F41: 0 | H41: 0 | J41: 0 | L41: 0 | N41: 0 | P41: =-R41 -> 998905646 | R41: =-R28 -> -998905646 | T41: 0 | V41: 0
A42: Resultado del ejercicio | C42: 0 | F42: 0 | H42: 0 | J42: 0 | L42: 0 | N42: 0 | P42: 0 | R42: =+'Nota 23'!B9 -> -648760110 | T42: 0 | V42: -648760110
A43: Desafectación de la reserva de revalúo técnico | C43: 0 | F43: 0 | H43: 0 | J43: 0 | L43: 0 | N43: 0 | P43: 0 | R43: 0 | T43: 0 | V43: 0
A44: Resultado del año | C44: =SUM(C31:C43) -> 3892601685 | F44: =SUM(F31:F43) -> 0 | H44: =SUM(H31:H43) -> 0 | J44: =SUM(J31:J43) -> 0 | L44: =SUM(L31:L43) -> 0 | N44: =SUM(N31:N43) -> 0 | P44: =SUM(P31:P43) -> 998905646 | R44: =SUM(R31:R43) -> -1647665756 | T44: =SUM(T31:T43) -> 0 | V44: =SUM(V31:V43) -> 3243841575
A46: =IFERROR(IF(Indice!B6="","Saldo al .. de de 20X2 ","Saldo al "&DAY(Indice!B6)&" de "&VLOOKUP(MONTH(Indice!B6),Indice!S:T,2,0)&" de "&YEAR(Indice!B6)),"Saldo al .. de de 20X2 ") -> Saldo al 31 de Marzo de 2023 | C46: =+C30+C44 -> 38367620437 | D46: =SUM(D30:D44) -> 0 | F46: =+F30+F44 -> 0 | H46: =+H30+H44 -> 0 | J46: =+J30+J44 -> 0 | L46: =+L30+L44 -> 0 | N46: =+N30+N44 -> 0 | P46: =+P30+P44 -> 663696123 | R46: =+R30+R44 -> -648760110 | T46: =+T30+T44 -> 0 | V46: =+V30+V44 -> 38382556450
A48: Las notas que se acompañan forman parte integrante de estos estados. | V48: =+V46-BG!F54 -> 0

Sheet EFE
A5: ESTADO DE FLUJOS DE EFECTIVO (Método directo)
A6: =IFERROR(IF(Indice!B6="","Al dia... de mes… de año 2XX2…","Al "&DAY(Indice!B6)&" de "&VLOOKUP(MONTH(Indice!B6),Indice!S:T,2,0)&" de "&YEAR(Indice!B6)),"Al dia... de mes… de año 2XX2…") -> Al 31 de Marzo de 2023
A7: Comparativo con igual periodo del año anterior
A8: (En miles de guaraníes)
B11: =IFERROR(IF(Indice!B6="","2XX2",YEAR(Indice!B6)),"2XX2") -> 2023 | C11: =IFERROR(YEAR(Indice!B6-365),"2XX1") -> 2022
A13: FLUJO DE EFECTIVO DE ACTIVIDADES OPERATIVAS
A14: Cobranzas efectuadas a clientes | B14: 1590930055 | C14: -279497075
A15: Pagos efectuados a proveedores y empleados | B15: -28620602161 | C15: 664718843
A16: Efectivo generado por las operaciones | C16: 0
A17: Intereses pagados | C17: 0
A18: Otros ingresos y (egresos) - neto | B18: 11577563655 | C18: 42093796
A19: Pagos de impuesto a la renta | C19: 0
A20: Flujo neto de efectivo de actividades operativas | B20: =SUM(B14:B19) -> -15452108451 | C20: =SUM(C14:C19) -> 427315564
A22: FLUJO DE EFECTIVO DE ACTIVIDADES DE INVERSIÓN
A23: Adquisición de bienes de uso | B23: -925560 | C23: -9612692
A24: Adquisición de bienes Curtiembre - fideicomitida
A25: Ventas de activos fijos | B25: 0 | C25: 0
A26: Ventas de bienes de uso | C26: 0
A27: Intereses cobrados sobre inversiones | C27: 0
A28: Aquisición de inversiones | B28: 2972312016 | C28: -2050569310
A29: Flujo neto de efectivo de actividades de inversión | B29: =SUM(B23:B28) -> 2971386456 | C29: =SUM(C23:C28) -> -2060182002
A31: FLUJO DE EFECTIVO DE ACTIVIDADES DE FINANCIACIÓN
A32: (Disminución) Incremento de préstamos | C32: 0
A33: Aportes de capital recibidos | B33: 11381300727 | C33: 3070319676
A34: Dividendos pagados | C34: 0
A35: Flujo neto de efectivo de actividades de financiamiento | B35: =B32+B33+B34 -> 11381300727 | C35: =C32+C33+C34 -> 3070319676
A37: Efecto de las ganancias o pérdidas por diferencia de tipo de cambio | B37: 0 | C37: 44127133
A39: (Disminución) Incremento neto de efectivo | B39: =+B20+B29+B35+B37 -> -1099421268 | C39: 1481580371
A40: Efecto estimado de la diferencia de cambio sobre el saldo de efectivo | B40: 0 | C40: 0
A41: Efectivo al principio del año | B41: =+C43 -> 1657919204 | C41: 176338833
A43: Efectivo al final del periodo | B43: =+SUM(B39:B41) -> 558497936 | C43: =+SUM(C39:C41) -> 1657919204
A45: Las notas que se acompañan forman parte integrante de estos estados. | B45: =+B43-BG!F10 -> 0

Sheet Nota1
I1: BG
A6: NOTAS A LOS ESTADOS FINANCIEROS CORRESPONDIENTES AL PERIODO TERMINADO | H6: =IFERROR(IF(Indice!B6="","Al dia... de mes… de año 2XX2…","Al "&DAY(Indice!B6)&" de "&VLOOKUP(MONTH(Indice!B6),Indice!S:T,2,0)&" de "&YEAR(Indice!B6)),"Al dia... de mes… de año 2XX2…") -> Al 31 de Marzo de 2023
A7: Presentadas en forma comparativa con el periodo terminado | F7: =IFERROR("Al "&DAY(Indice!B6)&" de "&VLOOKUP(MONTH(Indice!B6),Indice!S:T,2,0)&" de "&YEAR(Indice!B6-365),"Al dia... de mes… de año 2XX1…") -> Al 31 de Marzo de 2022
A11: NOTA 1 – DESCRIPCIÓN DE LA NATURALEZA Y DEL NEGOCIO DE LA COMPAÑÍA
A13: INVESTA CAPITAL S.A.E.C.A.
A14: Es una Sociedad Anónima Emisora de Capital Abierta, bajo la denominación de INVESTA CAPITAL S.A.E.C.A., la Sociedad fue constituida por Escritura Pública Nro. 56 en la ciudad de Asunción, Capital de la República del Paraguay, fecha 07 de mayo del año 2021. El objeto de la sociedad es dedicarse a las siguientes actividades: a) La adquisición y/o construcción de bienes inmuebles que se destinen al arrendamiento o la adquisición del derecho a percibir ingresos provenientes del arrendamiento de dichos bienes, así como otorgar financiamiento para esos fines con garantía sobre los bienes de que se trate. b) Desarrollar, directa o indirectamente, a través de cualquier entidad, vehículo o contrato, proyectos inmobiliarios para uso comercial, industrial, residencial, hotelero, o de cualquier otra naturaleza; c) Construir, supervisar, remodelar, diseñar, usar, administrar, operar y arrendar bienes inmuebles de cualquier naturaleza, por cuenta propia o de terceros d) Realizar toda clase de construcciones, edificaciones, conjuntos inmobiliarios, fraccionamientos, edificios o instalaciones para oficinas, centros de operación o cualquier tipo de establecimiento. e) Comprar, vender, utilizar, arrendar, dar o recibir en comodato, poseer, permutar, enajenar, transmitir, o disponer de la propiedad de toda clase inmuebles, así como otros derechos reales o personales sobre ellos, con el objeto de construir, desarrollar, edificar, o adaptar dichos bienes inmuebles para fines industriales, comerciales, residenciales, hoteleros o de cualquier otra naturaleza. f) Podrá emitir acciones y otros títulos-valores para negociarlos en el Mercado de Valores, a través de la Bolsa de Valores y Productos de Asunción S.A. u otras entidades que se llegaren a crear, previa autorización de la Comisión Nacional de Valores y de conformidad a las disposiciones legales que regulan la materia.
A15: Puede realizar además cualquier acto o actividad de lícito comercio y ejecutar los actos que tengan relación directa o indirecta con sus fines sociales, con plena capacidad jurídica, sin limitaciones que las expresamente establecidas en la ley o en los estatutos.
A16: Su capital social es de Gs. 100.000.000.000 (Guaraníes Cien Mil Millones) representadas en: - Quince Mil acciones ordinarias de voto múltiple Clase A con un valor nominal de Gs. 1.000.000 (Guaraníes Un Millón) - Cinco Mil acciones ordinarias de voto múltiple Clase B con un valor nominal de Gs. 1.000.000 (Guaraníes Un Millón) - Cincuenta y Cinco Mil acciones ordinarias simples con un valor nominal de Gs. 1.000.000 (Guaraníes Un Millón) - Veinte y Cinco Mil acciones preferidas con un valor nominal de Gs. 1.000.000 (Guaraníes Un Millón)
A18: COMPOSICIÓN DEL DIRECTORIO
A19: La composición del Directorio se expone a continuación
A20: Presidente | B20: : | C20: Luis Augusto Montanaro Bedoya
A21: Director Titular | B21: : | C21: Julian Sandt
A22: Director Titular | B22: : | C22: Miguel Ángel Domínguez
A23: Director Titular | B23: : | C23: Paola María Montanaro Bedoya
A24: Sindico Titular | B24: : | C24: Alfredo Ricardo Ávalos Cáceres

Sheet Nota 2
H1: BG
A6: NOTA 2 - RESUMEN DE LAS PRINCIPALES POLÍTICAS CONTABLES
A8: A contiuacion se resumen las políticas de contabilidad más significativas aplicadas por la sociedad.
A10: a. Ajuste por inflación de la moneda de cuenta Los estados contables se han preparado sobre la base de costos históricos y no reconocen en forma integral los efectos de la inflación en la situacion patrimonial y financiera de la Sociedad al término del año fiscal, en atención a que la corrección monetaria no constituye una práctica contable aceptada en la República del Paraguay. Sin embargo se practicó la actualización de los saldos activos y pasivos en moneda extranjera al tipo de cambio libre y fluctuante al cierre del año fiscal así como el revalúo de los bienes del activo fijo sobre la base de la variación del IPC publicado por el BCP.
A11: b. Moneda extranjera Los saldos en moneda extranjera están valuados al tipo de cambio al cierre de marzo del año 2023, de acuerdo a la Subsecretaria de Estado de Tributación, donde se establece el tipo de cambio comprador y vendedor suministrado por la SET en Gs. 7.166,48 y 7.169,70; respectivamente.
A12: c. Moneda de cuenta. Los Estados Contables están expresados en (Gs.) Guaraníes, unidad monetaria de la República del Paraguay. Las operaciones en moneda extranjera fueron reconocidas y convertidas a guaraníes en la tasa de cambio fijada por la Subsecretaría de Estado de Tributación, la cual coincide con los informes mensuales del Banco Central del Paraguay. Todas las cuentas patrimoniales en moneda extranjera al cierre del primer trimestre fueron convertidos a la tasa de cambio al 31 de marzo de 2023, proveido por la Subsecretaría de Estado de Tributación.
A13: d. Activo Fijo Los bienes de uso están registrados de acuerdo con los siguientes criterios: i. En el período anterior los valores de origen de los bienes de uso y sus depreciaciones acumuladas existentes al inicio del ejercicio se encontraban revaluados de acuerdo a lo establecido en la Ley Nº 125/91, y la Ley N.º 2421/04 considerando los coeficientes de actualización anual suministrados a tal efecto por el Ministerio de Hacienda. En el periodo actual no se revaluarán solo se depreciarán de acuerdo a lo establecido en la Ley N.º 6.380/19 considerando los coeficientes de actualización anual suministrados a tal efecto por el Ministerio de Hacienda.”. El Poder Ejecutivo podrá establecer el revalúo obligatorio de los bienes del activo fijo, cuando la variación del Índice de Precios al Consumo determinado por el BCP alcance al menos 20% (veinte por ciento), acumulado desde el ejercicio en el cual se haya dispuesto el último ajuste por revalúo. El reconocimiento del revalúo obligatorio establecido por el Poder Ejecutivo formará parte de una reserva patrimonial cuyo único destino podrá ser la capitalización; al 31 de diciembre de 2020 el IPC acumulado ascendió a 2,2%, por lo cual no se aplicó el revalúo sobre dichos bienes. ii. Los bienes incorporados en el ejercicio se hallan registrados por su valor de adquisición; la depreciación de los mismos se computan al año siguiente de su adquisición. iii. Las mejoras o adiciones son capitalizadas, mientras que los gastos de mantenimiento y/o reparaciones que no aumentan el valor de los activos ni prolongan su vida útil, son imputados como gastos en el período en que se originan. iv. El valor residual de los bienes revaluados considerados en su conjunto no excede su valor recuperable al cierre del ejercicio.
A14: e. Reconocimiento de Ingresos y Gastos La sociedad adopta el prinicipio de lo devengado para el tratamiento contable de los ingresos y los egresos.
A15: f. Otros principios, prácticas y métodos
A16: La Sociedad ha mantenido de manera uniforme y constante las políticas contables arriba mencionadas y no existieron modificaciones sustanciales que pudieran ser reportables.

Sheet Nota 3
A1: =Indice!C1 -> INVESTA CAPITAL S.A.EC.A. | E1: BG
A2: Obs.: Revelar situación en el caso de contar con disponibilidad restringida
A7: NOTA 3 - EFECTIVO Y EQUIVALENTE DE EFECTIVO
A8: La composición de la cuenta es la siguiente:
A10: Concepto | C10: =IFERROR(IF(Indice!B6="","2XX2",YEAR(Indice!B6)),"2XX2") -> 2023 | D10: =IFERROR(YEAR(Indice!B6-365),"2XX1") -> 2022
A12: Caja | C12: 27169348 | D12: 27169348
A13: Recaudaciones a depositar | C13: 0 | D13: 0
A14: Bancos Locales - Moneda local Guaraníes | C14: 85294979 | D14: 1601976717
A15: Bancos Locales - Moneda extranjera Dólares | C15: 445797625 | D15: 28773139
A16: Bancos Locales - Moneda extranjera otros | C16: 0 | D16: 0
A17: Bancos en el Extranjero - Moneda extranjera Dólares | C17: 0 | D17: 0
A18: Fondo Fijo | C18: 235984 | D18: 0
A19: Total | C19: =+SUM($C$12:C18) -> 558497936 | D19: =SUM($D$12:D18) -> 1657919204

Sheet Nota 4
A1: =Indice!C1 -> INVESTA CAPITAL S.A.EC.A. | C1: BG
A4: NOTA 4 - INVERSIONES TEMPORALES
A5: La composición de la cuenta es la siguiente:
A7: Corriente | E7: No corrientes
A9: Concepto | B9: =IFERROR(IF(Indice!B6="","2XX2",YEAR(Indice!B6)),"2XX2") -> 2023 | C9: =IFERROR(YEAR(Indice!B6-365),"2XX1") -> 2022 | E9: Concepto | F9: =IFERROR(IF(Indice!B6="","2XX2",YEAR(Indice!B6)),"2XX2") -> 2023 | G9: =IFERROR(YEAR(Indice!B6-365),"2XX1") -> 2022
A10: Inversiones en Titulos del Sistema Financiero Local - Moneda Local Guaraníes | B10: 0 | C10: 0 | E10: Inversiones Financieras- Moneda Local Guaraníes | F10: =2408044990 -> 2408044990 | G10: 2408044990
A11: Inversiones en Titulos del Sistema Financiero Local - Moneda Extranjera Dólares | B11: 0 | C11: 0 | E11: Intereses a Cobrar por inversiones Financieras | F11: 1473031010 | G11: 1473031010
A12: Inversiones en Titulos del Sistema Financiero Local - Moneda Extranjera otros | B12: 0 | C12: 0 | E12: Intereses a Devengar por inversiones Financieras | F12: -1473031010 | G12: -1473031010
A13: Inversiones en Mercado Bursatil Local - Moneda Local Guaraníes | B13: 0 | C13: 0 | E13: Inversiones Financieras- Moneda Dólares | F13: 365088703 | G13: 0
A14: Inversiones en Mercado Bursatil Local - Moneda Extranjera Dólares | B14: 0 | C14: 0 | E14: Total | F14: =SUM(F10:F13) -> 2773133693 | G14: =SUM(G10:G13) -> 2408044990
A15: Inversiones en Mercado Bursatil Extranjera - Moneda Extranjera Dólares | B15: 0 | C15: 0
A16: Inversiones en Mercado Bursatil Extranjera - Moneda Extranjera otros | B16: 0 | C16: 0
A17: Inversiones Financieras- Moneda Local Guaraníes | B17: =75000000+229488794 -> 304488794 | C17: 205349010
A18: Inversiones Financieras - Moneda Extranjera Dólares | B18: 37202250 | C18: 0
A19: Intereses a Cobrar por inversiones Financieras | B19: 0 | C19: 420630990
A20: Intereses a Devengar por inversiones Financieras | B20: 0 | C20: -396491206
A21: Otras inversiones - Moneda Local Guaraníes | B21: 0 | C21: 0
A22: Otras inversiones - Moneda Extranjera Dólares | B22: 0 | C22: 0
A23: Total | B23: =SUM($B$10:B22) -> 341691044 | C23: =SUM($C$10:C22) -> 229488794

Sheet Nota 5
A1: =Indice!C1 -> INVESTA CAPITAL S.A.EC.A. | D1: BG
A2: Detallar cartera vencida y no vencida por clientes locales, extranjeros y partes relacionadas
A3: Se indicarán en este rubro todos los créditos a favor de la empresa provenientes de las ventas de Mercaderías y/o servicios (atendiendo a la actividades ordinarias de la empresa), separando las ventas locales en moneda nacional y/o extranjera de las ventas fuera del país en moneda nacional y/o extranjera
A5: NOTA 5 – CUENTAS POR COBRAR COMERCIALES
A6: Las cuentas a cobrar comerciales a corto plazo se integran como sigue:
C8: =IFERROR(IF(Indice!B6="","2XX2",YEAR(Indice!B6)),"2XX2") -> 2023 | D8: =IFERROR(YEAR(Indice!B6-365),"2XX1") -> 2022 | F8: Composición de la cartera de créditos por ventas | G8: =IFERROR(IF(Indice!B6="","2XX2",YEAR(Indice!B6)),"2XX2") -> 1905-07-15
A9: Deudores por ventas locales | B9: Moneda Local Guaraníes | C9: 108000000 | D9: 108000000 | F9: Situación | G9: Monto | H9: % Previsiones sobre Cartera
A10: Deudores por ventas locales | B10: Moneda Extranjera Dólares | C10: 3428459 | D10: 12306106 | F10: A Total Cartera no Vencida | G10: 0 | H10: 0.01
A11: Deudores por ventas locales | B11: Moneda Extranjera otros | C11: 0 | D11: 0 | F11: B. Total Cartera Vencida | G11: 0
A12: Deudores por ventas en el exterior | B12: Moneda Local Guaraníes | C12: 0 | D12: 0 | F12: Composición Cartera Vencida
A13: Deudores por ventas en el exterior | B13: Moneda Extranjera Dólares | C13: 0 | D13: 0 | F13: Normal | G13: 0 | H13: 0.01
A14: Deudores por ventas en el exterior | B14: Moneda Extranjera otros | C14: 0 | D14: 0 | F14: En Gestión de Cobro | G14: 0 | H14: 0.05
A15: Deudores - Entidad relacionada | B15: Moneda Local Guaraníes | C15: 0 | D15: 0 | F15: En Gestión de Cobro Judicial | G15: 0 | H15: 0.2
A16: Deudores - Entidad relacionada | B16: Moneda Extranjera Dólares | C16: 0 | D16: 0
A17: Deudores - Entidad relacionada | B17: Moneda Extranjera otros | C17: 0 | D17: 0 | F17: Total de la cartera de créditos (A+B) | G17: =G10+G11 -> 0
A18: Cheques adelantados recibidos de clientes | B18: Moneda Local Guaraníes | C18: 0 | D18: 0
A19: Cheques adelantados recibidos de clientes | B19: Moneda Extranjera Dólares | C19: 0 | D19: 0 | F19: (-) Total Previsiones | G19: =-((G10*H10)+(SUMPRODUCT(G13:G15,H13:H15))) -> 0
A20: Cheques adelantados recibidos de clientes | B20: Moneda Extranjera otros | C20: 0 | D20: 0
A21: Cheques rechazados | B21: Moneda Local Guaraníes | C21: 0 | D21: 0 | F21: TOTAL NETO DE LA CARTERA DE CRÉDITOS | G21: =G17+G19 -> 0
A22: Cheques rechazados | B22: Moneda Extranjera Dólares | C22: 0 | D22: 0
A23: Documentos a cobrar | B23: Moneda Local Guaraníes | C23: 47750000 | D23: 164818163 | F23: Observaciones
A24: Otros | B24: Moneda Extranjera Dólares | C24: 0 | D24: 0 | F24: Criterios de Clasificación utilizados | G24: De | H24: A
A25: Otros | B25: Moneda Extranjera otros | C25: 0 | D25: 0 | F25: Normal | G25: 1 | H25: 30
A26: Menos Previsiones | C26: 0 | D26: 0 | F26: En Gestión de Cobro | G26: 31 | H26: 60
A27: Total | C27: =+SUM($C$9:C26) -> 159178459 | D27: =+SUM($D$9:D26) -> 285124269 | F27: En Gestión de Cobro Judicial | G27: 61 | H27: 10000
A30: Las cuentas a cobrar comerciales a largo plazo se integran como sigue:
C32: =IFERROR(IF(Indice!B6="","2XX2",YEAR(Indice!B6)),"2XX2") -> 2023 | D32: =IFERROR(YEAR(Indice!B6-365),"2XX1") -> 2022
A33: Deudores por ventas locales | B33: Moneda Local Guaraníes
A34: Deudores por ventas locales | B34: Moneda Extranjera Dólares
A35: Deudores por ventas locales | B35: Moneda Extranjera otros
A36: Deudores por ventas en el exterior | B36: Moneda Local Guaraníes
A37: Deudores por ventas en el exterior | B37: Moneda Extranjera Dólares
A38: Deudores por ventas en el exterior | B38: Moneda Extranjera otros
A39: Deudores - Entidad relacionada | B39: Moneda Local Guaraníes
A40: Deudores - Entidad relacionada | B40: Moneda Extranjera Dólares
A41: Deudores - Entidad relacionada | B41: Moneda Extranjera otros
A42: Cheques adelantados recibidos de clientes | B42: Moneda Local Guaraníes
A43: Cheques adelantados recibidos de clientes | B43: Moneda Extranjera Dólares
A44: Cheques adelantados recibidos de clientes | B44: Moneda Extranjera otros
A45: Deudores en gestión judicial | B45: Moneda Local Guaraníes
A46: Deudores en gestión judicial | B46: Moneda Extranjera Dólares
A47: Deudores en gestión judicial | B47: Moneda Extranjera otros
A48: Cheques rechazados | B48: Moneda Local Guaraníes
A49: Cheques rechazados | B49: Moneda Extranjera Dólares
A50: Otros | B50: Moneda Local Guaraníes
A51: Otros | B51: Moneda Extranjera Dólares
A52: Otros | B52: Moneda Extranjera otros
A53: Menos Previsiones
A54: Total | C54: =+SUM($C$33:C53) -> 0 | D54: =+SUM($D$33:D53) -> 0

Sheet Nota 6
A1: =Indice!C1 -> INVESTA CAPITAL S.A.EC.A. | C1: BG
A4: NOTA 6 - OTROS CRÉDITOS
A5: En miles de guaranies
A6: El rubro de otros créditos se compone como sigue:
A8: Corrientes | E8: No corrientes
A10: Concepto | B10: =IFERROR(IF(Indice!B6="","2XX2",YEAR(Indice!B6)),"2XX2") -> 2023 | C10: =IFERROR(YEAR(Indice!B6-365),"2XX1") -> 2022 | E10: Concepto | F10: =IFERROR(IF(Indice!B6="","2XX2",YEAR(Indice!B6)),"2XX2") -> 2023 | G10: =IFERROR(YEAR(Indice!B6-365),"2XX1") -> 2022
A11: Anticipos a proveedores | B11: =2861872+801947019 -> 804808891 | C11: 1003093687 | E11: Garantía de Alquiler | F11: 0 | G11: 0
A12: Gastos pagados por adelantado | B12: 0 | C12: 0 | E12: I.V.A. Crédito fiscal | F12: 0 | G12: 0
A13: Anticipo Impuesto a la Renta | B13: 0 | C13: 0 | E13: Anticipos a proveedores | F13: 0 | G13: 0
A14: Retención Impuesto a la Renta | B14: 0 | C14: 0 | E14: (nuevas cuentas a incluir) | F14: 0 | G14: 0
A15: Anticipo de salario | B15: 2000000 | C15: 3500000 | E15: Total | F15: =SUM($F$11:F14) -> 0 | G15: =SUM($F$11:G14) -> 0
A16: Retención Impuesto al Valor agregado | B16: 0 | C16: 0
A17: Cuentas a Cobrar Directores y Funcionarios | B17: =11600000+2072904 -> 13672904 | C17: 0
A18: Cuentas a Cobrar a Socios o Entidades Vinculadas | B18: =585688281+500000000 -> 1085688281 | C18: 12294626000
A19: Valen pendientes de rendición Fondo Fijo | B19: 0 | C19: 0
A20: Otros Créditos * | B20: 0 | C20: 7988699042
A21: Alquileres Pagados por adelantado | B21: 0 | C21: 0
A22: Préstamos otorgados | B22: =50000000+67701160 -> 117701160 | C22: 0
A23: I.V.A. Crédito Fiscal | B23: 883309414 | C23: 339501813
A24: Total | B24: =SUM($B$11:B23) -> 2907180650 | C24: =SUM($C$11:C23) -> 21629420542
A26: * Los saldos expuestos corresponden a aportes pendientes de capitalizacion de socios.

Sheet Nota 7
A1: =Indice!C1 -> INVESTA CAPITAL S.A.EC.A. | C1: BG
A4: NOTA 7 – INVENTARIOS
A6: Los bienes de cambio están compuestos de la siguiente manera:
A8: Concepto | B8: =IFERROR(IF(Indice!B6="","2XX2",YEAR(Indice!B6)),"2XX2") -> 2023 | C8: =IFERROR(YEAR(Indice!B6-365),"2XX1") -> 2022
A9: Mercaderías | B9: 0 | C9: 0
A10: Productos terminados | B10: 0 | C10: 0
A11: Productos en proceso | B11: 0 | C11: 0
A12: Materia prima | B12: 0 | C12: 0
A13: Proyecto Edificio Eligio | B13: 2293214523 | C13: 1189305808
A14: (-) Previsión para desvalorización y deterioro de inventario | B14: 0 | C14: 0
A15: Total | B15: =SUM(B9:B14) -> 2293214523 | C15: =SUM(C9:C14) -> 1189305808

Sheet Nota 8
A1: =Indice!C1 -> INVESTA CAPITAL S.A.EC.A. | D1: BG
A4: Nota 8 - INVERSIONES EN ASOCIADAS
A5: En miles de guaraníes
A6: Las inversiones en sociedades donde no se ejerce control se describen a continuación
A7: Periodo | B7: =IFERROR(IF(Indice!B6="","2XX2",YEAR(Indice!B6)),"2XX2") -> 2023 | C7: =IFERROR(YEAR(Indice!B6-365),"2XX1") -> 2022
A8: Total Inversión | B8: =+SUM(I15:I23) -> 2962015131 | C8: 6389530722
C9: 0
A12: a) Datos sobre la sociedad: | G12: a) Datos sobre la inversión:
D13: 2022
A14: Nombre de Sociedad | B14: RUC | C14: Cantidad de acciones | D14: Total Patrimonio neto | E14: Total del resultado | G14: Cantidad de acciones | H14: Participación sobre los votos (%) | I14: Total Inversión (miles de Gs) | J14: Participación sobre el Patrimonio Neto (%) | K14: Total valuación patrimonial proporcional | L14: Resultado sobre inversiones
A15: FINCO S.A. | B15: 80130552-7 | C15: 10 | D15: 4097379397 | E15: 0 | G15: 170 | H15: 0.8333 | I15: 170569525 | J15: 0.5 | K15: =J15*D15 -> 2048689698 | L15: =J15*E15 -> 0
A16: INVESTA VENTURE CAPITAL S.A. | B16: 80130549-7 | C16: 10 | D16: 10200000 | E16: 0 | G16: 5 | H16: 0.8333 | I16: 10598281 | J16: 0.5 | K16: 5100000 | L16: 0
A17: LIVI SALUD PREVENTIVA S.A. | B17: 80024129-0 | C17: 5058 | D17: 773358408 | E17: -1410794511 | G17: 1637 | H17: 0.3239018599 | I17: 250492226.7 | J17: 0.3239018599 | K17: 250492226.7 | L17: -456958966.1
A18: AGUAS DEL PARAGUAY S.A. | B18: 80111526-4 | C18: 200 | D18: 1074285212 | E18: 70570951 | G18: 90 | H18: 0.45 | I18: 483428345.4 | J18: 0.45 | K18: 483428345.4 | L18: 31756927.95
A19: AIPOTA S.A. | B19: 80104431-6 | C19: 2040 | D19: 3135584088 | E19: 711415399 | G19: 800 | H19: 0.3571428571 | I19: 1119851460 | J19: 0.3571428571 | K19: 1119851460 | L19: 254076928.2
A20: GESTIONES Y COBRANZAS S.A. | B20: 80014985-8 | C20: 279326 | D20: 83537960288 | E20: 2917376287 | G20: 2000 | H20: 0 | I20: 426179293 | J20: 0.005101624357 | K20: 426179293 | L20: 14883357.92
A21: HAM S.A. | B21: 80112803-0 | C21: 190 | D21: 190063226 | E21: 80722316 | G21: 35 | H21: 0.1842105263 | I21: 2000000 | J21: 0.1842105263 | K21: 35011646.89 | L21: 14869900.32
A22: GRUPO FARGO EMPRESARIAL S.A. | B22: 80100411-0 | G22: 200 | I22: 200000000 | K22: =J22*D22 -> 0 | L22: =J22*E22 -> 0
A23: VISION BANCO S.A.E.C.A. | B23: 80009310-0 | G23: 2874 | I23: 298896000 | K23: =J23*D23 -> 0 | L23: =J23*E23 -> 0

Sheet Nota 10
A1: =Indice!C1 -> INVESTA CAPITAL S.A.EC.A. | C1: BG
A4: NOTA 10 – ACTIVOS DISPONIBLES PARA LA VENTA
B6: =IFERROR(IF(Indice!B6="","2XX2",YEAR(Indice!B6)),"2XX2") -> 2023 | C6: =IFERROR(YEAR(Indice!B6-365),"2XX1") -> 2022
A7: Propiedad, planta y equipo
A8: (Detallar bienes de uso)
A9: Total | B9: =B8 -> 0 | C9: =C8 -> 0
A11: Activos intangibles
A12: (Detallar activos intangibles)
A13: Total | B13: =B12 -> 0 | C13: =C12 -> 0
A15: Inversiones
A16: (Detallar Inversiones
A17: Total | B17: =B16 -> 0 | C17: =C16 -> 0
A19: Total general | B19: =B9+B13+B17 -> 0 | C19: =C9+C13+C17 -> 0

Sheet Nota 9
A1: =Indice!C1 -> INVESTA CAPITAL S.A.EC.A. | L1: BG
A4: Obs.:
A5: Incluir aclaraciones en los siguientes casos:
A6: 1. Cuando los bienes de uso tienen alguna restricción sobre su utilización, como por ejemplo cuando están garantizando obligaciones. En su caso también hacer referencia a la nota correspondiente.
A7: 2. Cuando exista alguna previsión por desvalorización (“deterioro”), detallando la evolución de la misma en el transcurso del año.
A8: 3. Si se están capitalizando intereses al costo de bienes de uso. En su caso deberá aclararse la tasa utilizada para la capitalización.
A9: Ver adicionalmente Norma de Información Financiera N° 11 Propiedades, planta y equipo
A11: NOTA 9 - PROPIEDADES, PLANTA Y EQUIPO - NETO
J12: -1
B14: Costo histórico revaluado al inicio del año | C14: Adquisiciones | D14: Bajas | E14: Revalúo del año | F14: Valor de origen revaluado al final del año | G14: Depreciación acumulada revaluada al inicio del año | H14: Depreciación del año | I14: Bajas de depreciaciones acumuladas | J14: Revalúo depreciación acumulada del año | K14: Depreciación acumulada revaluada al final del año | L14: Valor neto contable
L15: =IFERROR(IF(Indice!B6="","2XX2",YEAR(Indice!B6)),"2XX2") -> 2023 | M15: =IFERROR(YEAR(Indice!B6-365),"2XX1") -> 2022
A16: Instalaciones | B16: 115576337 | C16: 0 | D16: 0 | E16: 0 | F16: =SUM(B16:E16) -> 115576337 | G16: 0 | H16: 0 | I16: 0 | J16: 0 | K16: =SUM(G16:J16) -> 0 | L16: =+F16-K16 -> 115576337 | M16: =+B16 -> 115576337
A17: Rodados | B17: 0 | C17: 0 | D17: 0 | E17: 0 | F17: =SUM(B17:E17) -> 0 | G17: 0 | H17: 0 | I17: 0 | J17: 0 | K17: =SUM(G17:J17) -> 0 | L17: =+F17-K17 -> 0 | M17: 0
A18: Equipos | B18: 18481930 | C18: =531014+318182 -> 849196 | D18: 0 | E18: 0 | F18: 19331126 | G18: 0 | H18: 0 | I18: 0 | J18: 0 | K18: 0 | L18: 19331126 | M18: =+B18 -> 18481930
A19: Muebles y útiles | B19: 140773241 | C19: 76364 | D19: 0 | E19: 0 | F19: 140849605 | G19: 0 | H19: 0 | I19: 0 | J19: 0 | K19: 0 | L19: 140849605 | M19: =+B19 -> 140773241
A20: Equipos de comunicación | B20: 0 | C20: 0 | D20: 0 | E20: 0 | F20: 0 | G20: 0 | H20: 0 | I20: 0 | J20: 0 | K20: 0 | L20: 0 | M20: 0
A21: Maquinarias y herramientas | B21: 0 | C21: 0 | D21: 0 | E21: 0 | F21: 0 | G21: 0 | H21: 0 | I21: 0 | J21: 0 | K21: 0 | L21: 0 | M21: 0
A22: Obras en curso | B22: 0 | C22: 0 | D22: 0 | E22: 0 | F22: 0 | G22: 0 | H22: 0 | I22: 0 | J22: 0 | K22: 0 | L22: 0 | M22: 0
A23: Mejoras en predio ajeno | B23: 19411547 | F23: 19411547 | H23: 0 | K23: 0 | L23: 19411547 | M23: 19411547
A24: Totales | L24: =SUM($L$16:L23) -> 295168615 | M24: =SUM($M$16:M23) -> 294243055

Sheet Nota 11
A1: =Indice!C1 -> INVESTA CAPITAL S.A.EC.A. | F1: BG
A4: NOTA 11 – ACTIVOS INTANGIBLES
A6: Activos intangibles | B6: =IFERROR(IF(Indice!B6="","2XX2",YEAR(Indice!B6)),"2XX2") -> 2023 | C6: =IFERROR(YEAR(Indice!B6-365),"2XX1") -> 2022
A7: Software Contable | B7: =5272727+2577791 -> 7850518 | C7: 5272727
A8: Licencias Informaticas | B8: 28961166 | C8: 28961166
A9: Menos amortización acumulada | B9: -6846778.6 | C9: -6846778.6
A11: Total general | B11: =SUM(B7:B10) -> 29964905.4 | C11: =SUM(C7:C10) -> 27387114.4
A14: * Los activos intangibles se amortizan en 5 años desde el año siguiente de adquisiciòn

Sheet Nota 12
A1: =Indice!C1 -> INVESTA CAPITAL S.A.EC.A. | E1: BG
A5: NOTA 12 – CARGOS DIFERIDOS
A6: Se compone como sigue:
B7: En miles de guaranies
A8: Concepto | B8: =IFERROR(IF(Indice!B6="","2XX2",YEAR(Indice!B6)),"2XX2") -> 2023 | C8: =IFERROR(YEAR(Indice!B6-365),"2XX1") -> 2022
A9: Gastos de Organización | B9: 303684833 | C9: 303684833
A10: Amortizacion de Gastos de Organización | B10: -60736966.6 | C10: -60736966.6
A11: Total general | B11: =SUM(B9:B10) -> 242947866.4 | C11: =SUM(C9:C10) -> 242947866.4
A13: * Los gastos de organización son amortizados durante 5 años desde el año siguiente de adquisición

Sheet Nota 13
A1: =Indice!C1 -> INVESTA CAPITAL S.A.EC.A. | C1: BG
A4: NOTA 13 – CUENTAS POR PAGAR COMERCIALES
A5: Las cuentas por pagar comerciales se componen como sigue:
A7: Corrientes | B7: Simbología según ISO 4217 | C7: Indicación de Moneda | D7: =IFERROR(IF(Indice!B6="","2XX2",YEAR(Indice!B6)),"2XX2") -> 2023 | E7: =IFERROR(YEAR(Indice!B6-365),"2XX1") -> 2022
A8: Proveedores - Entidades Relacionadas | B8: PYG | C8: =IFERROR(VLOOKUP(B8,'Base de Monedas'!A:B,2,0),"") -> Guaraní | D8: 0 | E8: 0
A9: Otros proveedores del exterior | C9: =IFERROR(VLOOKUP(B9,'Base de Monedas'!A:B,2,0),"") ->  | D9: 0 | E9: 0
A10: Proveedores locales | B10: PYG | C10: =IFERROR(VLOOKUP(B10,'Base de Monedas'!A:B,2,0),"") -> Guaraní | D10: 6366923 | E10: 2144257
A11: Prestamos del dueño, socios o entidades vinculadas | B11: PYG | C11: =IFERROR(VLOOKUP(B11,'Base de Monedas'!A:B,2,0),"") -> Guaraní | D11: 0 | E11: 0
A12: Total cuentas a pagar por comerciales | D12: =SUM($D$8:D11) -> 6366923 | E12: =SUM($E$8:E10) -> 2144257
A16: No Corrientes | B16: Simbología según ISO 4217 | C16: Indicación de Moneda | D16: =IFERROR(YEAR(Indice!B6),"2XX2") -> 2023 | E16: =IFERROR(YEAR(Indice!B6-365),"2XX1") -> 2022
A17: Proveedores - Entidades Relacionadas | C17: =IFERROR(VLOOKUP(B17,'Base de Monedas'!A:B,2,0),"") -> 
A18: Otros proveedores del exterior | C18: =IFERROR(VLOOKUP(B18,'Base de Monedas'!A:B,2,0),"") -> 
A19: Proveedores locales | C19: =IFERROR(VLOOKUP(B19,'Base de Monedas'!A:B,2,0),"") -> 
A20: (nuevas cuentas a incluir) | C20: =IFERROR(VLOOKUP(B20,'Base de Monedas'!A:B,2,0),"") -> 
A21: Total cuentas a pagar por comerciales | D21: =SUM($D$17:D19) -> 0 | E21: =SUM($E$17:E19) -> 0

Sheet Nota 14
A1: =Indice!C1 -> INVESTA CAPITAL S.A.EC.A. | E1: BG | L1: BG
A4: NOTA 14 – PRESTAMOS A CORTO Y LARGO PLAZO
A6: (a) Equivalentes al tipo de cambio referencial de la fecha de presentacion
A7: (b) Obligaciones garantizadas por valor de guaraníes………..
A9: Corrientes
D10: =IFERROR(IF(Indice!B6="","2XX2",YEAR(Indice!B6)),"2XX2") -> 2023 | J10: =IFERROR(YEAR(Indice!B6-365),"2XX1") -> 2022
A11: Préstamos de Entidades Locales | B11: Vencimiento | C11: Símbolo de Moneda | D11: Moneda | E11: Importe (miles de Gs) | F11: Tipo de Garantía | H11: Vencimiento | I11: Símbolo de Moneda | J11: Moneda | K11: Importe (miles de Gs) | L11: Tipo de Garantía
A12: Nombre de la entidad financiera | D12: =IFERROR(VLOOKUP(C12,'Base de Monedas'!A:B,2,0),"") ->  | J12: =IFERROR(VLOOKUP(I12,'Base de Monedas'!A:B,2,0),"") -> 
A13: Nombre de la entidad financiera | D13: =IFERROR(VLOOKUP(C13,'Base de Monedas'!A:B,2,0),"") ->  | J13: =IFERROR(VLOOKUP(I13,'Base de Monedas'!A:B,2,0),"") -> 
A14: (incluir otras entidades) | D14: =IFERROR(VLOOKUP(C14,'Base de Monedas'!A:B,2,0),"") ->  | J14: =IFERROR(VLOOKUP(I14,'Base de Monedas'!A:B,2,0),"") -> 
A15: Deudas bursátiles | D15: =IFERROR(VLOOKUP(C15,'Base de Monedas'!A:B,2,0),"") ->  | J15: =IFERROR(VLOOKUP(I15,'Base de Monedas'!A:B,2,0),"") -> 
A16: (Incluir programas de forma individual) | D16: =IFERROR(VLOOKUP(C16,'Base de Monedas'!A:B,2,0),"") ->  | J16: =IFERROR(VLOOKUP(I16,'Base de Monedas'!A:B,2,0),"") -> 
A17: Préstamos de Entidades en el Exterior | D17: =IFERROR(VLOOKUP(C17,'Base de Monedas'!A:B,2,0),"") ->  | J17: =IFERROR(VLOOKUP(I17,'Base de Monedas'!A:B,2,0),"") -> 
A18: Nombre de la entidad financiera | D18: =IFERROR(VLOOKUP(C18,'Base de Monedas'!A:B,2,0),"") ->  | J18: =IFERROR(VLOOKUP(I18,'Base de Monedas'!A:B,2,0),"") -> 
A19: Nombre de la entidad financiera | D19: =IFERROR(VLOOKUP(C19,'Base de Monedas'!A:B,2,0),"") ->  | J19: =IFERROR(VLOOKUP(I19,'Base de Monedas'!A:B,2,0),"") -> 
A20: (incluir otras entidades) | D20: =IFERROR(VLOOKUP(C20,'Base de Monedas'!A:B,2,0),"") ->  | J20: =IFERROR(VLOOKUP(I20,'Base de Monedas'!A:B,2,0),"") -> 
A21: Deudas bursátiles | D21: =IFERROR(VLOOKUP(C21,'Base de Monedas'!A:B,2,0),"") ->  | J21: =IFERROR(VLOOKUP(I21,'Base de Monedas'!A:B,2,0),"") -> 
A22: (Incluir programas de forma individual) | D22: =IFERROR(VLOOKUP(C22,'Base de Monedas'!A:B,2,0),"") ->  | J22: =IFERROR(VLOOKUP(I22,'Base de Monedas'!A:B,2,0),"") -> 
A23: Intereses préstamos entidades financieras a pagar | D23: =IFERROR(VLOOKUP(C23,'Base de Monedas'!A:B,2,0),"") ->  | J23: =IFERROR(VLOOKUP(I23,'Base de Monedas'!A:B,2,0),"") -> 
A24: Intereses a pagar | D24: =IFERROR(VLOOKUP(C24,'Base de Monedas'!A:B,2,0),"") ->  | J24: =IFERROR(VLOOKUP(I24,'Base de Monedas'!A:B,2,0),"") -> 
A25: (-) Intereses a Devengar
A26: Intereses deudas bursátiles a pagar | D26: =IFERROR(VLOOKUP(C26,'Base de Monedas'!A:B,2,0),"") -> 
A27: Intereses a pagar | D27: =IFERROR(VLOOKUP(C27,'Base de Monedas'!A:B,2,0),"") -> 
A28: (-) Intereses a Devengar | D28: =IFERROR(VLOOKUP(C28,'Base de Monedas'!A:B,2,0),"") -> 
A29: Total | D29: =IFERROR(VLOOKUP(C29,'Base de Monedas'!A:B,2,0),"") ->  | E29: =SUM($E$12:E28) -> 0 | K29: =SUM($K$12:K28) -> 0
A32: No Corrientes
B33: 20X2 | D33: =IFERROR(YEAR(Indice!B6),"2XX2") -> 2023 | J33: =IFERROR(YEAR(Indice!B6-365),"2XX1") -> 2022
A34: Préstamos de Entidades Locales | B34: Vencimiento | C34: Símbolo de Moneda | D34: Moneda | E34: Importe (miles de Gs) | F34: Tipo de garantía | H34: Vencimiento | I34: Símbolo de Moneda | J34: Moneda | K34: Importe (miles de Gs) | L34: Tipo de Garantía
A35: Nombre de la entidad financiera | D35: =IFERROR(VLOOKUP(C35,'Base de Monedas'!A:B,2,0),"") ->  | J35: =IFERROR(VLOOKUP(I35,'Base de Monedas'!A:B,2,0),"") -> 
A36: Nombre de la entidad financiera | D36: =IFERROR(VLOOKUP(C36,'Base de Monedas'!A:B,2,0),"") ->  | J36: =IFERROR(VLOOKUP(I36,'Base de Monedas'!A:B,2,0),"") -> 
A37: (incluir otras entidades) | D37: =IFERROR(VLOOKUP(C37,'Base de Monedas'!A:B,2,0),"") ->  | J37: =IFERROR(VLOOKUP(I37,'Base de Monedas'!A:B,2,0),"") -> 
A38: Deudas bursátiles | D38: =IFERROR(VLOOKUP(C38,'Base de Monedas'!A:B,2,0),"") ->  | J38: =IFERROR(VLOOKUP(I38,'Base de Monedas'!A:B,2,0),"") -> 
A39: (Incluir programas de forma individual) | D39: =IFERROR(VLOOKUP(C39,'Base de Monedas'!A:B,2,0),"") ->  | J39: =IFERROR(VLOOKUP(I39,'Base de Monedas'!A:B,2,0),"") -> 
A40: Préstamos de Entidades en el Exterior | D40: =IFERROR(VLOOKUP(C40,'Base de Monedas'!A:B,2,0),"") ->  | J40: =IFERROR(VLOOKUP(I40,'Base de Monedas'!A:B,2,0),"") -> 
A41: Nombre de la entidad financiera | D41: =IFERROR(VLOOKUP(C41,'Base de Monedas'!A:B,2,0),"") ->  | J41: =IFERROR(VLOOKUP(I41,'Base de Monedas'!A:B,2,0),"") -> 
A42: Nombre de la entidad financiera | D42: =IFERROR(VLOOKUP(C42,'Base de Monedas'!A:B,2,0),"") ->  | J42: =IFERROR(VLOOKUP(I42,'Base de Monedas'!A:B,2,0),"") -> 
A43: (incluir otras entidades) | D43: =IFERROR(VLOOKUP(C43,'Base de Monedas'!A:B,2,0),"") ->  | J43: =IFERROR(VLOOKUP(I43,'Base de Monedas'!A:B,2,0),"") -> 
A44: Deudas bursátiles | D44: =IFERROR(VLOOKUP(C44,'Base de Monedas'!A:B,2,0),"") ->  | J44: =IFERROR(VLOOKUP(I44,'Base de Monedas'!A:B,2,0),"") -> 
A45: (Incluir programas de forma individual) | D45: =IFERROR(VLOOKUP(C45,'Base de Monedas'!A:B,2,0),"") ->  | J45: =IFERROR(VLOOKUP(I45,'Base de Monedas'!A:B,2,0),"") -> 
A46: Intereses préstamos entidades financieras a pagar | D46: =IFERROR(VLOOKUP(C46,'Base de Monedas'!A:B,2,0),"") ->  | J46: =IFERROR(VLOOKUP(I46,'Base de Monedas'!A:B,2,0),"") -> 
A47: Intereses a pagar | D47: =IFERROR(VLOOKUP(C47,'Base de Monedas'!A:B,2,0),"") ->  | J47: =IFERROR(VLOOKUP(I47,'Base de Monedas'!A:B,2,0),"") -> 
A48: (-) Intereses a Devengar
A49: Intereses deudas bursátiles a pagar | D49: =IFERROR(VLOOKUP(C49,'Base de Monedas'!A:B,2,0),"") ->  | J49: =IFERROR(VLOOKUP(I49,'Base de Monedas'!A:B,2,0),"") -> 
A50: Intereses a pagar | D50: =IFERROR(VLOOKUP(C50,'Base de Monedas'!A:B,2,0),"") ->  | J50: =IFERROR(VLOOKUP(I50,'Base de Monedas'!A:B,2,0),"") -> 
A51: (-) Intereses a Devengar | D51: =IFERROR(VLOOKUP(C51,'Base de Monedas'!A:B,2,0),"") -> 
A52: Total | D52: =IFERROR(VLOOKUP(C52,'Base de Monedas'!A:B,2,0),"") ->  | E52: =SUM($E$35:E51) -> 0 | J52: =IFERROR(VLOOKUP(I52,'Base de Monedas'!A:B,2,0),"") ->  | K52: =SUM($E$35:K51) -> 0
J53: =IFERROR(VLOOKUP(I53,'Base de Monedas'!H:I,2,0),"") -> 
J67: |

Sheet Nota 15
A1: =Indice!C1 -> INVESTA CAPITAL S.A.EC.A. | D1: BG
A5: NOTA 15 – PORCION CORRIENTE DE LA DEUDA A LARGO PLAZO
A8: Porción corriente de la deuda a largo plazo | B8: =IFERROR(IF(Indice!B6="","2XX2",YEAR(Indice!B6)),"2XX2") -> 2023 | C8: =IFERROR(YEAR(Indice!B6-365),"2XX1") -> 2022
A9: Cuentas por pagar comerciales
A10: Préstamos bancarios
A11: Bonos bursátiles
A12: Intereses bancarios a pagar
A13: Intereses bursatiles a pagar
A14: (nuevas cuentas a incluir)
A15: Total general | B15: =SUM($B$9:B14) -> 0 | C15: =SUM($C$9:C14) -> 0

Sheet Nota 16
A1: =Indice!C1 -> INVESTA CAPITAL S.A.EC.A. | D1: BG
A4: NOTA 16 – REMUNERACIONES Y CARGAS SOCIALES A PAGAR
A7: Remuneraciones y cargas sociales a pagar | B7: =IFERROR(IF(Indice!B6="","2XX2",YEAR(Indice!B6)),"2XX2") -> 2023 | C7: =IFERROR(YEAR(Indice!B6-365),"2XX1") -> 2022
A8: Sueldo y otras remuneraciones a pagar | B8: 0 | C8: 0
A9: Aportes y retenciones a pagar | B9: 0 | C9: 0
A10: Remuneraciones al personal superior a pagar | B10: 0 | C10: 0
A11: Instituto de Prevision Social | B11: 3519000 | C11: 3817828
A12: Total | B12: =SUM($B$8:B11) -> 3519000 | C12: =SUM($C$8:C11) -> 3817828

Sheet Nota 17
A1: =Indice!C1 -> INVESTA CAPITAL S.A.EC.A. | D1: BG
A5: NOTA 17 – IMPUESTOS A PAGAR
B7: En miles de guaranies
A8: Impuestos a pagar | B8: =IFERROR(IF(Indice!B6="","2XX2",YEAR(Indice!B6)),"2XX2") -> 2023 | C8: =IFERROR(YEAR(Indice!B6-365),"2XX1") -> 2022
A9: Impuesto a la renta a pagar | B9: 145599299 | C9: 145599299
A10: Otros impuestos a pagar | B10: 0 | C10: 0
A11: IVA a Pagar | B11: 0 | C11: 0
A12: Total | B12: =SUM($B$9:B11) -> 145599299 | C12: =SUM($C$9:C11) -> 145599299

Sheet Nota 18
A1: =Indice!C1 -> INVESTA CAPITAL S.A.EC.A. | D1: BG
A4: NOTA 18 - PROVISIONES
A7: Provisiones | B7: =IFERROR(IF(Indice!B6="","2XX2",YEAR(Indice!B6)),"2XX2") -> 2023 | C7: =IFERROR(YEAR(Indice!B6-365),"2XX1") -> 2022
A9: Alquileres a Pagar | B9: 0 | C9: 0
A10: Servicios Basicos a Pagar | B10: 0 | C10: 0
A11: Honorarios Profesionales a Pagar | B11: 0 | C11: 0
A12: Gastos a reponer | B12: 0 | C12: 203417
A13: Retencion caucional Edificio Eligio | B13: 90855496 | C13: 40872187
B14: 0 | C14: 0
A15: Total | B15: =SUM($B$9:B14) -> 90855496 | C15: =SUM($C$9:C14) -> 41075604

Sheet Nota 19
A1: =Indice!C1 -> INVESTA CAPITAL S.A.EC.A. | D1: BG
A3: NOTA 19 – OTROS PASIVOS CORRIENTES y NO CORRIENTES
A6: Corrientes | B6: =IFERROR(IF(Indice!B6="","2XX2",YEAR(Indice!B6)),"2XX2") -> 2023 | C6: =IFERROR(YEAR(Indice!B6-365),"2XX1") -> 2022 | E6: No Corrientes | F6: =IFERROR(IF(Indice!B6="","2XX2",YEAR(Indice!B6)),"2XX2") -> 2023 | G6: =IFERROR(YEAR(Indice!B6-365),"2XX1") -> 2022
A7: Retencion de IVA a pagar | B7: 0 | C7: 0 | E7: Retencion de IVA a pagar
A8: Retencion Impuesto a la renta a Pagar | B8: 0 | C8: 0 | E8: Retencion Impuesto a la renta a Pagar
A9: Impuestos diferidos | B9: 0 | C9: 0 | E9: Impuestos diferidos
A10: Otros ingresos diferidos (detallar cuenta) | B10: =+SUM(B11) -> 358921030 | C10: 0 | E10: Otros ingresos diferidos
A11: Contrato Nro 10 Dpto 06 Coch 09 | B11: 358921030 | E11: Otros Pasivos con Entidades relacionadas
A12: Otros Pasivos con Entidades relacionadas | B12: 0 | C12: 0 | E12: Previsiones para contingencias/Indemnizaciones y despidos
A13: Previsiones para contingencias/Indemnizaciones y despidos | B13: 0 | C13: 0 | E13: Obligaciones Proyecto Eligio | F13: 282764700 | G13: 282764700
A14: Aportes de inversionistas | B14: 0 | C14: 12394221 | E14: Aportes de inversionistas | F14: 3421505531 | G14: 2225505531
A15: Anticipos de clientes | B15: =1030446392 -> 1030446392 | C15: 0
A16: Aporte de inversionistas | B16: 34481599 | C16: 0
A17: Total | B17: =SUM(B8:B10)+SUM(B12:B16) -> 1423849021 | C17: =SUM(C8:C10)+SUM(C12:C16) -> 12394221 | E17: Total | F17: =SUM(F7:F16) -> 3704270231 | G17: =SUM(G7:G16) -> 2508270231

Sheet Nota 20
A1: =Indice!C1 -> INVESTA CAPITAL S.A.EC.A. | D1: BG
A4: NOTA 20 – CAPITAL INTEGRADO
A6: Fecha | B6: =IFERROR(IF(Indice!B6="","2XX2",YEAR(Indice!B6)),"2XX2") -> 2023 | C6: =IFERROR(YEAR(Indice!B6-365),"2XX1") -> 2022
A7: Monto Capital Social | B7: 100000000000 | C7: 100000000000
A8: Monto Capital Integrado | B8: 34541000000 | C8: 34427000000
A9: Aporte pendiente de capitalización | B9: 3826620437 | C9: 48018752
A10: Cantidad de Acciones | B10: 100000 | C10: 100000
A11: Valor Nominal de Acciones | B11: 1000000 | C11: 1000000
A12: Total | B12: =+SUM(B8:B9) -> 38367620437 | C12: =+SUM(C8:C9) -> 34475018752

Sheet Nota 21
A1: =Indice!C1 -> INVESTA CAPITAL S.A.EC.A. | F1: BG
A4: NOTA 21 – RESERVAS
B7: =IFERROR(IF(Indice!B6="","2XX2",YEAR(Indice!B6)),"2XX2") -> 2023 | C7: =IFERROR(YEAR(Indice!B6-365),"2XX1") -> 2022
A8: a Reserva de revalúo
A12: b Reserva legal
A16: c Reservas estatutarias
A20: d Reservas facultativas | B20: =+SUM($B$21:B26) -> 0 | C20: =+SUM($C$21:C26) -> 0
A21: d.1. (nuevas cuentas a incluir)
A22: d.2. (nuevas cuentas a incluir)

Sheet Nota 22
A1: =Indice!C1 -> INVESTA CAPITAL S.A.EC.A. | D1: BG
A4: NOTA 21 – DIFERENCIA TRANSITORIA POR CONVERSION
B7: =IFERROR(IF(Indice!B6="","2XX2",YEAR(Indice!B6)),"2XX2") -> 2023 | C7: =+IFERROR(YEAR(Indice!B6-365),"2XX1") -> 2022
A8: Diferencia transitoria por conversión
A9: N/A
A15: Totales | B15: =SUM(B12:B13) -> 0 | C15: =SUM(C12:C13) -> 0

Sheet Nota 23
A1: =Indice!C1 -> INVESTA CAPITAL S.A.EC.A. | D1: BG
A4: NOTA 23 – RESULTADOS ACUMULADOS
B7: =IFERROR(IF(Indice!B6="","2XX2",YEAR(Indice!B6)),"2XX2") -> 2023 | C7: =+IFERROR(YEAR(Indice!B6-365),"2XX1") -> 2022
A8: Resultado de ejercicios anteriores | B8: 663696123 | C8: -335209523
A9: Resultado del ejercicio actual | B9: -648760110 | C9: 998905646
A10: Totales | B10: =SUM($B$8:B9) -> 14936013 | C10: =SUM($C$8:C9) -> 663696123

Sheet Nota 24
A1: =Indice!C1 -> INVESTA CAPITAL S.A.EC.A. | D1: BG
A4: NOTA 24 – INTERES MINORITARIO
B7: =IFERROR(IF(Indice!B6="","2XX2",YEAR(Indice!B6)),"2XX2") -> 2023 | C7: =+IFERROR(YEAR(Indice!B6-365),"2XX1") -> 2022
A8: Interes Minoritario
A9: N/A
A14: Totales | B14: =SUM(B11:B12) -> 0 | C14: =SUM(C11:C12) -> 0

Sheet Nota 25
A1: =Indice!C1 -> INVESTA CAPITAL S.A.EC.A. | C1: ER
A5: NOTA 25 – VENTAS
B7: =IFERROR(IF(Indice!B6="","2XX2",YEAR(Indice!B6)),"2XX2") -> 2023 | C7: =+IFERROR(YEAR(Indice!B6-365),"2XX1") -> 2022
A8: Ventas
A9: Ingresos por alquileres cobrados
A10: Local
A11: Contado | B11: 13868719 | C11: 0
A12: Crédito | B12: 0 | C12: 18703634
A13: Exterior
A14: Contado | B14: 0 | C14: 0
A15: Crédito | B15: 0 | C15: 0
A16: Recupero por reestructuracion de inmuebles
A17: Local
A18: Contado | B18: 0 | C18: 0
A19: Crédito | B19: 0 | C19: 0
A20: Exterior
A21: Contado | B21: 0 | C21: 0
A22: Crédito | B22: 0 | C22: 0
A23: Venta de departamentos en pozo
A24: Local
A25: Contado | B25: 0 | C25: 4874828344
A26: Crédito | B26: 0 | C26: 0
A27: Exterior
A28: Contado | B28: 0 | C28: 0
A29: Crédito | B29: 0 | C29: 0
A30: Venta de acciones
A31: Local
A32: Contado | B32: 0 | C32: 0
A33: Crédito | B33: 0 | C33: 14908020000
A34: Exterior
A35: Contado | B35: 0 | C35: 0
A36: Crédito | B36: 0 | C36: 0
A37: Total | B37: =SUM($B$9:B36) -> 13868719 | C37: =SUM($C$9:C36) -> 19801551978

Sheet Nota 26
A1: =Indice!C1 -> INVESTA CAPITAL S.A.EC.A. | C1: ER
A5: NOTA 26 - COSTO DE VENTAS
A9: Costo de ventas | B9: =IFERROR(IF(Indice!B6="","2XX2",YEAR(Indice!B6)),"2XX2") -> 2023 | C9: =+IFERROR(YEAR(Indice!B6-365),"2XX1") -> 2022
A11: DEPARTAMENTOS EDIFICIO ELIGIO | B11: 0 | C11: 978158009
A12: OTROS COSTOS | B12: 0 | C12: 14908000000
A13: Total costo de ventas | B13: =SUM(B11:B12) -> 0 | C13: =SUM($C$10:C12) -> 15886158009

Sheet Nota 27
A1: =Indice!C1 -> INVESTA CAPITAL S.A.EC.A. | G1: ER
A5: NOTA 27 - GASTOS
A6: (Esta nota deberá ser incluida cuando en el estado de resultados se haga mención a una cuenta de carácter general o cuyo nombre no permita una adecuada identificación de la naturaleza del gasto y su importe sea significativo)
A8: El rubro está compuesto de la siguiente forma:
A10: Miles de guaraníes
A11: DESCRIPCION | C11: =IFERROR(IF(Indice!B6="","2XX2",YEAR(Indice!B6)),"2XX2") -> 2023 | F11: =+IFERROR(YEAR(Indice!B6-365),"2XX1") -> 2022
B12: Gastos de Ventas | C12: Gastos Administrativos | D12: Total | E12: Gastos de Ventas | F12: Gastos Administrativos | G12: Total
A13: Comisiones Pagadas | B13: 106602847 | D13: =+SUM(B13:C13) -> 106602847 | E13: 81765000 | G13: =+SUM(E13:F13) -> 81765000
A14: Publicidad Led | D14: =+SUM(B14:C14) -> 0 | E14: 9818181 | G14: =+SUM(E14:F14) -> 9818181
A15: Redes Sociales | B15: 5340910 | D15: 5340910 | E15: 28290910 | G15: 28290910
A16: Branding | D16: 0 | E16: 2727273 | G16: 2727273
A17: Diseño y Desarrollo Web | D17: 0 | E17: 3409091 | G17: 3409091
A18: Marketing | D18: 0 | E18: 2072727 | G18: 2072727
A19: Sueldos y Jornales | C19: 41400000 | D19: 41400000 | F19: 68036000 | G19: 68036000
A20: Aguinaldos | D20: 0 | F20: 5669667 | G20: 5669667
A21: Aporte Patronal IPS | C21: 6831000 | D21: 6831000 | F21: 11225940 | G21: 11225940
A22: Aporte Patronal IPS - complementario | D22: 0 | F22: 1300074 | G22: 0
A23: Remuneracion Personal Superior | C23: 110000000 | D23: 110000000 | F23: 500000000 | G23: 500000000
A24: Gastos de Representacion | C24: 7566428 | D24: 7566428 | F24: 8415091 | G24: 8415091
A25: Honorarios por Auditoria Externa | D25: 0 | F25: 17800000 | G25: 17800000
A26: Honorarios por Asesoramiento Juridico | C26: 21826060 | D26: 21826060 | F26: 35373243 | G26: 35373243
A27: Honorarios Profesionales | C27: 1000000 | D27: 1000000 | F27: 59945453 | G27: 59945453
A28: Servicios de Consultoria | C28: 90000000 | D28: 90000000 | F28: 0 | G28: 0
A29: Alquileres Pagados | C29: 53765129 | D29: 53765129 | F29: 194529103 | G29: 194529103
A30: Agua | C30: 253636 | D30: 253636 | F30: 1181363 | G30: 1181363
A31: Luz | C31: 1221982 | D31: 1221982 | F31: 13433909 | G31: 13433909
A32: Internet | C32: 1251891 | D32: 1251891 | F32: 4327827 | G32: 4327827
A33: Reparaciones y mantetniminetos Instalaciones | C33: 1050000 | D33: 1050000 | F33: 0 | G33: 0
A34: Gastos de Gestion | D34: 0 | F34: 139294 | G34: 139294
A35: Utiles de Oficina | C35: 773124 | D35: 773124 | F35: 2064574 | G35: 2064574
A36: Donaciones y Contribucion | C36: 39600 | D36: 39600 | F36: 0 | G36: 0
A37: Comisiones y Gastos Bancarios Operacionales | D37: 0 | F37: 5971376 | G37: 5971376
A38: Impuestos, Patentes, Tasas y Otras Contribuciones | C38: 9977100 | D38: 9977100 | F38: 21272048 | G38: 21272048
A39: Gastos No Deducibles | C39: 4422050 | D39: 4422050 | F39: 16761625 | G39: 16761625
A40: Expensas | C40: 3961086 | D40: 3961086 | F40: 13227133 | G40: 13227133
A41: Pérdida por diferencia de tipo de cambio | C41: 18549586 | D41: 18549586 | F41: 32847597 | G41: 32847597
A42: Articulos de Limpieza | C42: 450015 | D42: 450015 | F42: 1876900 | G42: 1876900
A43: Espacios de estacionamiento | C43: 4090908 | D43: 4090908 | F43: 7272724 | G43: 7272724
A44: Voucher de estacionamiento | D44: 0 | F44: 0 | G44: 0
A45: Publicidad y Propaganda | C45: 58706370 | D45: 58706370 | F45: 217602238 | G45: 217602238
A46: Gastos de Insumos Informaticos | C46: 1781939 | D46: 1781939 | F46: 45455 | G46: 45455
A47: Gastos de Fin de Año | D47: 0 | F47: 1211818 | G47: 1211818
A48: Pasajes y Viaticos | D48: 0 | F48: 0 | G48: 0
A49: Otros Impuestos | D49: 0 | F49: 0 | G49: 0
A50: Gastos Generales | C50: 18245 | D50: 18245 | F50: 993987 | G50: 993987
A51: IVA Gasto | D51: 0 | F51: 62537 | G51: 62537
A52: Gastos de Escribania | C52: 2415909 | D52: 2415909 | F52: 6900511 | G52: 6900511
A53: Gastos de Supermercado | C53: 63239 | D53: 63239 | F53: 2286373 | G53: 2286373
A54: Cuota Social CAP | D54: 0 | F54: 5390000 | G54: 5390000
A55: Leasing Impresora | C55: 2166949 | D55: 2166949 | F55: 13406805 | G55: 13406805
A56: Mantenimiento Bursatil Cadiem | C56: 3000000 | D56: 3000000 | F56: 10000000 | G56: 10000000
A57: Gastos por eventos | D57: 0 | F57: 7595368 | G57: 7595368
A58: Servicio Tecnico Informatico | C58: 4181818 | D58: 4181818 | F58: 9972725 | G58: =+SUM(E58:F58) -> 9972725
A59: Confeccion Plano PCI | D59: 0 | F59: 1800000 | G59: =+SUM(E59:F59) -> 1800000
A60: Dominios Hosting | D60: 0 | F60: 160000 | G60: 160000
A61: Manual de lavado de dinero | D61: 0 | F61: 3200000 | G61: 3200000
A62: Asesoramiento Financiero | C62: 2000000 | D62: 2000000 | F62: 6432705 | G62: 6432705
A63: Cuota social CCPB | C63: 360000 | D63: 360000 | F63: 3935000 | G63: 3935000
A64: Agasajos al personal | D64: 0 | F64: 1990658 | G64: =+SUM(E64:F64) -> 1990658
A65: Registro CNV | C65: 2942670 | D65: 2942670 | F65: 30641530 | G65: =+SUM(E65:F65) -> 30641530
A66: Registro BVA | C66: 9808900 | D66: 9808900 | F66: 35337584 | G66: =+SUM(E66:F66) -> 35337584
A67: Canon anual seprelad | D67: 0 | F67: 294545 | G67: =+SUM(E67:F67) -> 294545
A68: Intereses Pagados | C68: 22087378 | D68: 22087378 | F68: 12394221 | G68: 12394221
A69: Comisión de corretaje | C69: 568964 | D69: 568964 | G69: 0
A70: Arancel de bolsa | C70: 57000 | D70: 57000 | G70: 0
A71: Firmas digitales | C71: 227273 | D71: 227273 | G71: 0
A72: Gastos no identificados | C72: 123400000 | D72: 123400000
A73: Fondo de garantia | C73: 14945 | D73: 14945 | G73: 0
A74: Chequeras | D74: 0 | F74: 0 | G74: 0
A75: Gastos por Orden de Pago | D75: 0 | F75: 1199221 | G75: 1199221
A76: Gastos bancarios | C76: 201982 | D76: 201982 | G76: 0
A77: Depreciacion del Ejercicio | D77: 0 | F77: 52457957 | G77: 52457957
A78: Amortiz. B.P. Gtos Deducibles | D78: 0 | F78: 67583745 | G78: 67583745
A79: Utilidad/Perdida en valuacion de inversiones | D79: 0 | F79: 1541613892 | G79: 1541613892
A80: Utilidad/Perdida en venta de acciones | D80: =+SUM(B80:C80) -> 0 | F80: 10434783 | G80: 10434783
A81: Total | B81: =+SUM($B$13:B80) -> 111943757 | C81: =+SUM($C$13:C80) -> 612433176 | D81: =+SUM($D$13:D80) -> 724376933 | E81: =+SUM($E$13:E80) -> 128083182 | F81: =+SUM($F$13:F80) -> 3067614599 | G81: =SUM(G13:G80) -> 3194397707
E86: 0 | F86: 438922276 | G86: 438922276

Sheet Nota 28
A1: =Indice!C1 -> INVESTA CAPITAL S.A.EC.A. | G1: ER
A4: Nota 28 - Otros Ingresos y gastos operativos
A6: Miles de guaraníes
A8: Otros ingresos | B8: =IFERROR(IF(Indice!B6="","2XX2",YEAR(Indice!B6)),"2XX2") -> 2023 | C8: =+IFERROR(YEAR(Indice!B6-365),"2XX1") -> 2022 | E8: Otros gastos | F8: =IFERROR(IF(Indice!B6="","2XX2",YEAR(Indice!B6)),"2XX2") -> 2023 | G8: =+IFERROR(YEAR(Indice!B6-365),"2XX1") -> 2022
A9: Intereses Cobrados | B9: 0 | C9: 992957 | E9: (Detallar cuenta)
A10: Ingresos Varios | B10: 9272828 | C10: 41100839
A11: Utilidad por Diferencia de Cambio | B11: 2475276 | C11: 76974730
A12: Ganancia en Inversiones | B12: 0 | C12: 141408280
A13: Intereses cobrados empresas intercompany | B13: 0 | C13: 15929544
A14: intereses cobrados por prestamos a socios | B14: 0 | C14: 124262623
A15: Intereses Cobrados por inversiones financieras | B15: 0 | C15: 24139784
A16: Ingresos por comisiones cobradas | B16: 50000000 | C16: 0
A17: Total | B17: =SUM(B9:B16) -> 61748104 | C17: =SUM($C$9:C16) -> 424808757 | E17: Total | F17: =SUM($F$9:F16) -> 0 | G17: =SUM($G$9:G16) -> 0

Sheet Nota 29
A1: =Indice!C1 -> INVESTA CAPITAL S.A.EC.A. | G1: ER
A5: NOTA 29 - INGRESOS Y GASTOS FINANCIEROS NETOS
A8: Ingresos Financieros netos | B8: =IFERROR(IF(Indice!B6="","2XX2",YEAR(Indice!B6)),"2XX2") -> 2023 | C8: =+IFERROR(YEAR(Indice!B6-365),"2XX1") -> 2022 | E8: Gastos Financieros netos | F8: =IFERROR(IF(Indice!B6="","2XX2",YEAR(Indice!B6)),"2XX2") -> 2023 | G8: =+IFERROR(YEAR(Indice!B6-365),"2XX1") -> 2022
A9: (Detallar cuentas) | E9: (Detallar cuentas)
A14: Total ingresos financieros | B14: =SUM($B9:B13) -> 0 | C14: =SUM($C9:C13) -> 0 | E14: Total gastos financieros | F14: =SUM($F9:F13) -> 0 | G14: =SUM($G9:G13) -> 0

Sheet Nota 30
A1: =Indice!C1 -> INVESTA CAPITAL S.A.EC.A. | D1: ER
A4: Nota 34 - Resultado de inversiones en asociadas
A8: Resultado de inversiones en asociadas | B8: =IFERROR(IF(Indice!B6="","2XX2",YEAR(Indice!B6)),"2XX2") -> 2023 | C8: =+IFERROR(YEAR(Indice!B6-365),"2XX1") -> 2022
A9: (Detallar cuenta)
A16: Total | B16: =SUM($B9:B15) -> 0 | C16: =SUM($C9:C15) -> 0

Sheet Nota 31
A1: =Indice!C1 -> INVESTA CAPITAL S.A.EC.A. | E1: ER
A4: Nota 31 - Resultado participación minoritaria
A6: Resultado participación minoritaria | B6: =IFERROR(IF(Indice!B6="","2XX2",YEAR(Indice!B6)),"2XX2") -> 2023 | C6: =+IFERROR(YEAR(Indice!B6-365),"2XX1") -> 2022
A7: (Detallar cuenta) | B7: 0 | C7: 0
B8: 0 | C8: 0
A9: Total | B9: =SUM($B7:B8) -> 0 | C9: =SUM($C7:C8) -> 0

Sheet Nota 32
A1: =Indice!C1 -> INVESTA CAPITAL S.A.EC.A. | E1: ER
A4: Nota 32 - IMPUESTO A LA RENTA
A5: En miles de guaraníes
B7: =IFERROR(IF(Indice!B6="","2XX2",YEAR(Indice!B6)),"2XX2") -> 2023 | C7: =+IFERROR(YEAR(Indice!B6-365),"2XX1") -> 2022
A8: Impuesto a la renta | B8: 0 | C8: 145599299
B9: 0 | C9: 0
A10: Total | B10: =SUM($B8:B9) -> 0 | C10: =SUM($C8:C9) -> 145599299

Sheet Nota 33
A1: =Indice!C1 -> INVESTA CAPITAL S.A.EC.A. | E1: ER
A4: Nota 33 - Resultado extraordinario neto de impuesto a la renta
B7: =IFERROR(IF(Indice!B6="","2XX2",YEAR(Indice!B6)),"2XX2") -> 2023 | C7: =+IFERROR(YEAR(Indice!B6-365),"2XX1") -> 2022
A8: Conceptos
A9: (Detallar) | B9: 0 | C9: 0
A10: Total | B10: =SUM($B8:B9) -> 0 | C10: =SUM($C8:C9) -> 0

Sheet Nota 34
A1: =Indice!C1 -> INVESTA CAPITAL S.A.EC.A. | E1: ER
A4: Nota 34 - Resultado sobre actividades discontinuadas neto de impuesto a la renta
A7: Resultado sobre actividades discontinuadas neto de impuesto a la renta | B7: =IFERROR(IF(Indice!B6="","2XX2",YEAR(Indice!B6)),"2XX2") -> 2023 | C7: =+IFERROR(YEAR(Indice!B6-365),"2XX1") -> 2022
A9: (nueva cuenta a incluir) | B9: 0 | C9: 0
A10: Subtotal | B10: 0 | C10: 0
A11: - Impuesto a la renta | B11: 0 | C11: 0
A12: Total | B12: =SUM($B8:B11) -> 0 | C12: =SUM($C8:C11) -> 0

Sheet Nota 35
A1: =Indice!C1 -> INVESTA CAPITAL S.A.EC.A. | C1: ER
A4: NOTA 35- UTILIDAD (PÉRDIDA) NETA DEL AÑO Y POR ACCION ORDINARIA
A5: El capital social es de Gs. 100.000.000.000 (Guaraníes Cien Mil Millones) representadas en: - 15.000 acciones ordinarias de voto múltiple Clase A con un valor nominal de Gs. 1.000.000 (Guaraníes Un Millón) - 5.000 acciones ordinarias de voto múltiple Clase B con un valor nominal de Gs. 1.000.000 (Guaraníes Un Millón) - 55.000 acciones ordinarias simples con un valor nominal de Gs. 1.000.000 (Guaraníes Un Millón)
B7: =IFERROR(IF(Indice!B6="","2XX2",YEAR(Indice!B6)),"2XX2") -> 2023 | C7: =+IFERROR(YEAR(Indice!B6-365),"2XX1") -> 2022
A8: Cantidad de Acciones Ordinarias en Circulación | B8: 0 | C8: 34427
A9: Utilidad Neta | B9: 0 | C9: 998905645.9
A10: Utilidad Neta por Acción Ordinaria | B10: =IFERROR(B9/B8,0) -> 0 | C10: =IFERROR(C9/C8,0) -> 29015.18128

Sheet Nota 36
A1: =Indice!C1 -> INVESTA CAPITAL S.A.EC.A. | E1: Indice
A4: NOTA 36 - ACTIVOS GRAVADOS
A6: Los siguientes bienes de propiedad de la Sociedad han sido hipotecados y prendados en garantía de obligaciones financieras.
A8: =IFERROR("Al "&DAY(Indice!B6)&" de "&VLOOKUP(MONTH(Indice!B6),Indice!S:T,2,0)&" de "&YEAR(Indice!B6-365),"Al dia... de mes… de año 2XX1…") -> Al 31 de Marzo de 2022
A9: Tipo de Activo | B9: Datos del activo gravado | C9: Tipo de garantía | D9: Importe (indicar moneda) | E9: A favor de
A15: =IFERROR("Al "&DAY(Indice!B6)&" de "&VLOOKUP(MONTH(Indice!B6),Indice!S:T,2,0)&" de "&YEAR(Indice!B6-1),"Al dia... de mes… de año 2XX2…") -> Al 31 de Marzo de 2023
A16: Tipo de Activo | B16: Datos del activo gravado | C16: Tipo de garantía | D16: Importe (indicar moneda) | E16: A favor de

Sheet Nota 37
A1: =Indice!C1 -> INVESTA CAPITAL S.A.EC.A. | D1: Indice
A4: NOTA 37 - CONTINGENCIAS Y COMPROMISOS
A5: (Esta nota debería incluir un breve detalle de contratos con terceros, vigente a la fecha de cierre del ejercicio, cuyo incumplimiento o cláusula específica podrían generar obligaciones contingentes para el cliente).
A6: =IFERROR("Los principales contratos suscriptos por la Sociedad, vigentes al "&DAY(Indice!B6)&" de "&VLOOKUP(MONTH(Indice!B6),Indice!S:T,2,0)&" de "&YEAR(Indice!B6-1)&" son:","Los principales contratos suscriptos por la Sociedad, vigentes al … de … 20X2 son:") -> Los principales contratos suscriptos por la Sociedad, vigentes al 31 de Marzo de 2023 son:
A7: a)
A8: b)
A11: =IFERROR("Al "&DAY(Indice!B6)&" de "&VLOOKUP(MONTH(Indice!B6),Indice!S:T,2,0)&" de "&YEAR(Indice!B6-1)&" no existen situaciones contingentes, ni reclamos que pudieran resultar en la generación de obligaciones para la Sociedad adicionales a las que se presentan en estos estados financieros.","Al … de …………... 20X2 no existen situaciones contingentes, ni reclamos que pudieran resultar en la generación de obligaciones para la Sociedad adicionales a las que se presentan en estos estados financieros.") -> Al 31 de Marzo de 2023 no existen situaciones contingentes, ni reclamos que pudieran resultar en la generación de obligaciones para la Sociedad adicionales a las que se presentan en estos estados financieros.
A13: Obs.: Esta información debe estar ajustada a lo requerido por la Norma de Información Financiera N° 5 Contingencias y sucesos que ocurren después de la fecha del balance.

Sheet Nota 38
A1: =Indice!C1 -> INVESTA CAPITAL S.A.EC.A. | C1: Índice
A4: NOTA 38 - IMPUESTO DIFERIDO
A5: En miles de guaraníes
A6: Al … de …........... 20X2 la Sociedad constituyó una provisión para impuesto a la renta de Guaraníes …... (Al … de …...............20X1: Guaraníes …....) / (La Sociedad no ha constituido provisión para impuesto a la renta, debido a que a esa fecha la misma generó renta imponible que fue compensada con quebrantos impositivos acumulados a esa fecha).
A7: La Sociedad contabiliza el impuesto a la renta por el método de lo diferido, método del pasivo. El mencionado método establece la determinación de activos o pasivos impositivos diferidos netos basados en las diferencias temporales y temporarias, con cargo a la línea Impuesto a la renta del Estado de resultados.
A9: El siguiente cuadro detalla las diferencias temporales a la tasa del impuesto a los efectos de determinación del impuesto diferido:
B11: =IFERROR(IF(Indice!B6="","2XX2",YEAR(Indice!B6)),"2XX2") -> 2023 | C11: =+IFERROR(YEAR(Indice!B6-365),"2XX1") -> 2022
A12: Activos y pasivos impositivos diferidos:
A13: Caja y Bancos
A14: Inversiones
A15: Previsión para deudores incobrables
A16: Bienes de uso
A17: Activos intangibles
A18: Previsión del pasivo
A19: Deudas comerciales y bancarias
A20: Bienes de cambio
A21: Sub - total
A22: Previsión para impuestos diferidos netos
A23: Total activo/pasivo impositivo diferido neto antes de quebrantos
A24: Quebranto impositivo
A25: Total

Sheet Nota 39
A1: =Indice!C1 -> INVESTA CAPITAL S.A.EC.A. | C1: Indice
A5: NOTA 39 - HECHOS POSTERIORES
A6: (En caso en que entre la fecha del cierre del ejercicio y la fecha de emisión de los estados financieros existan hechos posteriores significativos deberá evaluarse el tipo de hecho posterior del que se trate y modificar esta nota según corresponda).
A9: Entre la fecha de cierre del ejercicio y la fecha de preparación de estos estados financieros, no han ocurrido hechos significativos de carácter financiero o de otra índole que afecten la situación patrimonial o financiera o los resultados de la Sociedad al 31 de enero de 2022

Sheet Nota 40
A1: =Indice!C1 -> INVESTA CAPITAL S.A.EC.A. | D1: Indice
A5: NOTA 40 - SALDOS Y TRANSACCIONES CON PARTES RELACIONADAS
B8: =IFERROR(IF(Indice!B6="","2XX2",YEAR(Indice!B6)),"2XX2") -> 2023 | C8: =+IFERROR(YEAR(Indice!B6-365),"2XX1") -> 2022
A9: ACTIVO
A10: Inversiones temporales
A11: Cuentas a cobrar comerciales
A12: Cuentas a cobrar a directores y funcionarios | B12: 0 | C12: 12294626000
A13: Cuentas a cobrar a socios o entidades vinculadas
A14: Otros créditos
A15: Total activo | B15: =+SUM(B9:B14) -> 0 | C15: =+SUM(C9:C14) -> 12294626000
A16: PASIVO
A17: Cuentas por pagar comerciales
A18: Préstamos a corto plazo
A19: Provisiones
A20: Préstamos a largo plazo
A21: Otros pasivos
A22: Total pasivo | B22: =SUM(B16:B21) -> 0 | C22: =SUM(C16:C21) -> 0
B26: =IFERROR(IF(Indice!B6="","2XX2",YEAR(Indice!B6)),"2XX2") -> 2023 | C26: =+IFERROR(YEAR(Indice!B6-365),"2XX1") -> 2022
A27: Costo de ventas
A28: Compras a ….
A30: Gastos administrativos
A31: Honorarios por servicios
A32: Otros
A33: Gastos financieros
A34: Intereses pagados por préstamos

Sheet Nota 41
A1: =Indice!C1 -> INVESTA CAPITAL S.A.EC.A. | C1: ER
A5: NOTA 41 - INVERSIONES INMOBILIARIAS
B9: =IFERROR(IF(Indice!B6="","2XX2",YEAR(Indice!B6)),"2XX2") -> 2023 | C9: =+IFERROR(YEAR(Indice!B6-365),"2XX1") -> 2022
A10: DEPARTAMENTOS EDIFICIO ELIGIO
A11: Anticipo Proyecto Curupayty II - CANOPY SA | B11: 357816700 | C11: 248603950
A12: Anticipo Terreno en Chaco i | B12: 3250000000 | C12: 3250000000
A13: Anticipo Terreno en PARAISO COUNTRY CLUB | B13: 27586206897 | C13: 0
A14: Total costo de ventas | B14: =SUM($B$11:B13) -> 31194023597 | C14: =SUM($C$10:C13) -> 3498603950

Sheet Base de Monedas
A1: PYG | B1: Guaraní | C1: Índice
A2: USD | B2: Dólar estadounidense
A3: EUR | B3: Euro
A4: AED | B4: Dírham de los Emiratos Árabes Unidos
A5: AFN | B5: Afgani
A6: ALL | B6: Lek
A7: AMD | B7: Dram armenio
A8: ANG | B8: Florín antillano neerlandés
A9: AOA | B9: Kwanza
A10: ARS | B10: Peso argentino
A11: AUD | B11: Dólar australiano
A12: AWG | B12: Florín arubeño
A13: AZN | B13: Manat azerbaiyano
A14: BAM | B14: Marco convertible
A15: BBD | B15: Dólar de Barbados
A16: BDT | B16: Taka
A17: BGN | B17: Lev búlgaro
A18: BHD | B18: Dinar bareiní
A19: BIF | B19: Franco de Burundi
A20: BMD | B20: Dólar bermudeño
A21: BND | B21: Dólar de Brunéi
A22: BOB | B22: Boliviano
A23: BOV | B23: MVDOL
A24: BRL | B24: Real brasileño
A25: BSD | B25: Dólar bahameño
A26: BTN | B26: Ngultrum
A27: BWP | B27: Pula
A28: BYN | B28: Rublo bielorruso
A29: BZD | B29: Dólar beliceño
A30: CAD | B30: Dólar canadiense
A31: CDF | B31: Franco congoleño
A32: CHE | B32: Euro WIR
A33: CHF | B33: Franco suizo
A34: CHW | B34: Franco WIR
A35: CLF | B35: Unidad de fomento
A36: CLP | B36: Peso chileno
A37: CNY | B37: Yuan chino
A38: COP | B38: Peso colombiano
A39: COU | B39: Unidad de valor real
A40: CRC | B40: Colón costarricense
A41: CUC | B41: Peso convertible
A42: CUP | B42: Peso cubano
A43: CVE | B43: Escudo caboverdiano
A44: CZK | B44: Corona checa
A45: DJF | B45: Franco yibutiano
A46: DKK | B46: Corona danesa
A47: DOP | B47: Peso dominicano
A48: DZD | B48: Dinar argelino
A49: EGP | B49: Libra egipcia
A50: ERN | B50: Nakfa
A51: ETB | B51: Birr etíope
A52: FJD | B52: Dólar fiyiano
A53: FKP | B53: Libra malvinense
A54: GBP | B54: Libra esterlina
A55: GEL | B55: Lari
A56: GHS | B56: Cedi ghanés
A57: GIP | B57: Libra de Gibraltar
A58: GMD | B58: Dalasi
A59: GNF | B59: Franco guineano
A60: GTQ | B60: Quetzal
A61: GYD | B61: Dólar guyanés
A62: HKD | B62: Dólar de Hong Kong
A63: HNL | B63: Lempira
A64: HRK | B64: Kuna
A65: HTG | B65: Gourde
A66: HUF | B66: Forinto
A67: IDR | B67: Rupia indonesia
A68: ILS | B68: Nuevo shéquel israelí
A69: INR | B69: Rupia india
A70: IQD | B70: Dinar iraquí
A71: IRR | B71: Rial iraní
A72: ISK | B72: Corona islandesa
A73: JMD | B73: Dólar jamaiquino
A74: JOD | B74: Dinar jordano
A75: JPY | B75: Yen
A76: KES | B76: Chelín keniano
A77: KGS | B77: Som
A78: KHR | B78: Riel
A79: KMF | B79: Franco comorense
A80: KPW | B80: Won norcoreano
A81: KRW | B81: Won
A82: KWD | B82: Dinar kuwaití
A83: KYD | B83: Dólar de las Islas Caimán
A84: KZT | B84: Tenge
A85: LAK | B85: Kip
A86: LBP | B86: Libra libanesa
A87: LKR | B87: Rupia de Sri Lanka
A88: LRD | B88: Dólar liberiano
A89: LSL | B89: Loti
A90: LYD | B90: Dinar libio
A91: MAD | B91: Dírham marroquí
A92: MDL | B92: Leu moldavo
A93: MGA | B93: Ariary malgache
A94: MKD | B94: Denar
A95: MMK | B95: Kyat
A96: MNT | B96: Tugrik
A97: MOP | B97: Pataca
A98: MRU | B98: Uguiya
A99: MUR | B99: Rupia de Mauricio
A100: MVR | B100: Rufiyaa
A101: MWK | B101: Kwacha
A102: MXN | B102: Peso mexicano
A103: MXV | B103: Unidad de Inversión (UDI) mexicana
A104: MYR | B104: Ringgit malayo
A105: MZN | B105: Metical mozambiqueño
A106: NAD | B106: Dólar namibio
A107: NGN | B107: Naira
A108: NIO | B108: Córdoba
A109: NOK | B109: Corona noruega
A110: NPR | B110: Rupia nepalí
A111: NZD | B111: Dólar neozelandés
A112: OMR | B112: Rial omaní
A113: PAB | B113: Balboa
A114: PEN | B114: Sol
A115: PGK | B115: Kina
A116: PHP | B116: Peso filipino
A117: PKR | B117: Rupia pakistaní
A118: PLN | B118: Złoty
A119: QAR | B119: Riyal qatarí
A120: RON | B120: Leu rumano
A121: RSD | B121: Dinar serbio
A122: RUB | B122: Rublo ruso
A123: RWF | B123: Franco ruandés
A124: SAR | B124: Riyal saudí
A125: SBD | B125: Dólar de las Islas Salomón
A126: SCR | B126: Rupia seychelense
A127: SDG | B127: Dinar sudanés
A128: SEK | B128: Corona sueca
A129: SGD | B129: Dólar de Singapur
A130: SHP | B130: Libra de Santa Elena
A131: SLL | B131: Leone
A132: SOS | B132: Chelín somalí
A133: SRD | B133: Dólar surinamés
A134: SSP | B134: Libra sursudanesa
A135: STN | B135: Dobra
A136: SVC | B136: Colon Salvadoreño
A137: SYP | B137: Libra siria
A138: SZL | B138: Lilangeni
A139: THB | B139: Baht
A140: TJS | B140: Somoni tayiko
A141: TMT | B141: Manat turcomano
A142: TND | B142: Dinar tunecino
A143: TOP | B143: Paʻanga
A144: TRY | B144: Lira turca
A145: TTD | B145: Dólar de Trinidad y Tobago
A146: TWD | B146: Nuevo dólar taiwanés
A147: TZS | B147: Chelín tanzano
A148: UAH | B148: Grivna
A149: UGX | B149: Chelín ugandés
A150: USN | B150: Dólar estadounidense (Siguiente día)
A151: UYI | B151: Peso en Unidades Indexadas (Uruguay)
A152: UYU | B152: Peso uruguayo
A153: UYW | B153: Unidad Previsional
A154: UZS | B154: Som uzbeko
A155: VES7​ | B155: Bolívar soberano
A156: VND | B156: Dong vietnamita
A157: VUV | B157: Vatu
A158: WST | B158: Tala
A159: XAF | B159: Franco CFA de África Central
A160: XAG | B160: Plata (una onza troy)
A161: XAU | B161: Oro (una onza troy)
A162: XBA | B162: Unidad compuesta europea (EURCO) (Unidad del mercados de bonos)
A163: XBB | B163: Unidad Monetaria europea (E.M.U.-6) (Unidad del mercado de bonos)
A164: XBC | B164: Unidad europea de cuenta 9 (E.U.A.-9) (Unidad del mercado de bonos)
A165: XBD | B165: Unidad europea de cuenta 17 (E.U.A.-17) (Unidad del mercado de bonos)
A166: XCD | B166: Dólar del Caribe Oriental
A167: XDR | B167: Derechos especiales de giro
A168: XOF | B168: Franco CFA de África Occidental
A169: XPD | B169: Paladio (una onza troy)
A170: XPF | B170: Franco CFP
A171: XPT | B171: Platino (una onza troy)
A172: XSU | B172: SUCRE
A173: XTS | B173: Reservado para pruebas
A174: XUA | B174: Unidad de cuenta BAD
A175: XXX | B175: Sin divisa
A176: YER | B176: Rial yemení
A177: ZAR | B177: Rand
A178: ZMW | B178: Kwacha zambiano
A179: ZWL | B179: Dólar zimbabuense
